Workbook

Sheet 試算シートの使い方
A1: 詳細版退職手当試算シートの使用について
H2: R5.8.7 現在
A3: １ 用意するもの（全てが揃わなくても試算は可能です）
A4: （１） | B4: 履歴書 … 除算期間・前歴等確認用
A5: （２） | B5: 給与個人票（最新） … 給料号俸等確認用
A6: （３） | B6: 期末勤勉手当加算率リスト（過去５年分） … 加算率確認用
A7: （４） | B7: ２０２３年保存版 福利厚生ハンドブック
A9: ２ 使用方法
A10: （１） | B10: 入力シートを開きます。
A11: （２） | B11: 入力シートの説明を参考に履歴書等を見ながら該当箇所に入力してください。
A13: ※１ 福利厚生ハンドブックを参考に入力してください。
A14: ※２ 不明な点は、所属の事務職員に確認するか、福利課企画管理班まで御連絡く
A15: ださい。（022-211-3672）
A55: ※ 子の満１歳の誕生日以降も育児休業を取得した場合は、上記のように分けて
A56: 入力します。
A57: 育児休業の場合は、子が１歳に達した日の属する月の末日までの期間は、そ
A58: の月数の３分の１が除算。それ以降は２分の１が除算となります。
A61: ３ 試算結果の印刷
A63: （１） ５ 調整額まで入力し終わりましたら、印刷シートを開きます。
A79: （２） 試算結果が表示されていますので、印刷してください。
A81: （３） 試算結果が表示されていますので、印刷してください。
A82: （２） 試算結果が表示されていますので、印刷してください。
A83: （１） 試算結果が表示されていますので、印刷してください。
A84: （０） 試算結果が表示されていますので、印刷してください。
A85: （１） 試算結果が表示されていますので、印刷してください。

Sheet 入力シート
B1: 詳細版
B2: 退職手当試算入力シート | AN2: 入力箇所(必須） | BA2: 入力箇所（場合によって）
B4: 退職時のおおよその退職手当額を試算します。 黄色いセル，（場合によっては）青いセルに入力してください。
A6: 1 | B6: 試算希望者の氏名と，退職（予定）日時点の年齢を入力してください。
B8: 氏 名 | R8: 生年月日
B9: 福 梨花 | R9: 1963-04-02
A13: 2 | B13: 退職事由を選んでください。（プルダウンから選択してください。）
B14: 定年 | Q14: ※退職事由によって退職手当額が大きく異なります。
Q15: ※退職年月日が６０歳の誕生日以降であれば、定年を選んでください。
B16: ↓平成２６年３月３１日の退職事由を選んでください。（平成2５年３月３１日の退職事由と異なる場合のみ，入力してください。）
Q17: （勧奨と定年は同じ支給率になります。） | AR17: 自己都合
A20: 3 | B20: 平成26年3月31日現在の年齢を入力してください。
B21: =$R$9 -> 23103 | O21: 歳
A24: 3 | B24: 採用及び退職年月日を入力してください。また，休職等除算期間がある場合には入力してください。
B26: 採用年月日 | P26: 1989-04-01 | AJ26: 勤続期間 | AX26: =TRUNC(IF(MONTH(P28)<MONTH(P26),(YEAR(P28)-YEAR(P26))*12+MONTH(P28)-MONTH(P26)+1,(YEAR(P28)-YEAR(P26))*12+MONTH(P28)-MONTH(P26)+1)/12) -> 35 | BB26: 年 | BF26: =MOD(IF(MONTH(P28)<MONTH(P26),(YEAR(P28)-YEAR(P26))*12+MONTH(P28)-MONTH(P26)+1,(YEAR(P28)-YEAR(P26))*12+MONTH(P28)-MONTH(P26)+1),12) -> 0 | BJ26: 月 | BN26: a | BP26: =(YEAR(P28)-YEAR(P26))*12+MONTH(P28)-MONTH(P26)+1 -> 420
B28: 退職年月日 | P28: 2024-03-31
B30: ※ 前歴に他の公務員期間があり，引き続いて採用になった方は，その期間が通算される場合があります。
B31: （福利厚生ハンドブック ２７頁参照） この場合には，前歴も含めた採用年数を入力してください。
F32: 事由 | P32: 子の誕生日 | AD32: 期間
B33: (1) | F33: 育休 | P33: 1992-12-25 | AD33: 1993-02-19 | AR33: から | AV33: 1993-12-31 | BJ33: まで
P35: 子が１歳になる日 | BL35: 月数 | BN35: 割合
F36: =EOMONTH(P36,-1) -> 1993-11-30 | P36: =IF(F33="育休",P33+364,"") -> 1993-12-24 | AA36: ① | AD36: =IF(AD33="","",IF(DAY(AD33)=1,AD33,IF(DAY(AD33)<>1,EOMONTH(AD33,0)+1,""))) -> 1993-03-01 | AV36: =IF(AV33>P36,EOMONTH(F36,1),IF(AV33="","",IF(EOMONTH(AV33,0)<>AV33,EOMONTH(AV33,-1),IF(AV33=EOMONTH(AV33,0),AV33,"")))) -> 1993-12-31 | BJ36: =IFERROR(DATEDIF(AD36,AV36,"M")+1,"") -> 10 | BN36: =IFERROR(VLOOKUP(F33,除算!$B$3:$C$11,2,FALSE),"") -> 3 | BR36: =IFERROR(ROUNDDOWN(BJ36/BN36,1),0) -> 3.3 | BV36: =IFERROR(BR36+BR37,"") -> 3.3
AA37: ② | AD37: =IF(AV36<>AV33,AV36+1,"") ->  | AV37: =IF(AV33="","",IF(EOMONTH(AV33,0)<>AV33,EOMONTH(AV33,-1),IF(AV33=EOMONTH(AV33,0),AV33,""))) -> 1993-12-31 | BJ37: =IFERROR(DATEDIF(AD37,AV37,"M")+1,"") ->  | BN37: =IF(BJ37="","",VLOOKUP(F33,除算!$F$3:$G$11,2,FALSE)) ->  | BR37: =IF(BJ37="",0,(ROUNDDOWN(BJ37/BN37,1))) -> 0
AH39: 除算① | AR39: =IFERROR(ROUNDDOWN(BV36/12,0),0) -> 0 | AV39: 年 | AZ39: =IFERROR(MOD(BV36,12),0) -> 3.3 | BD39: 月除算
B43: (2) | F43: 育休 | P43: 1992-12-25 | AD43: 1994-01-01 | AR43: から | AV43: 1994-03-31 | BJ43: まで
P45: 子が１歳になる日 | BL45: 月数 | BN45: 割合
F46: =EOMONTH(P46,-1) -> 1993-11-30 | P46: =IF(F43="育休",P43+364,"") -> 1993-12-24 | AA46: ① | AD46: =IF(AD43="","",IF(DAY(AD43)=1,AD43,IF(DAY(AD43)<>1,EOMONTH(AD43,0)+1,""))) -> 1994-01-01 | AV46: =IF(AV43>P46,EOMONTH(F46,1),IF(AV43="","",IF(EOMONTH(AV43,0)<>AV43,EOMONTH(AV43,-1),IF(AV43=EOMONTH(AV43,0),AV43,"")))) -> 1993-12-31 | BJ46: =IFERROR(DATEDIF(AD46,AV46,"M")+1,"") ->  | BN46: =IFERROR(VLOOKUP(F43,除算!$B$3:$C$11,2,FALSE),"") -> 3 | BR46: =IFERROR(ROUNDDOWN(BJ46/BN46,1),0) -> 0 | BV46: =IFERROR(BR46+BR47,"") -> 1.5
AA47: ② | AD47: =IF(AV46<>AV43,AV46+1,"") -> 1994-01-01 | AV47: =IF(AV43="","",IF(EOMONTH(AV43,0)<>AV43,EOMONTH(AV43,-1),IF(AV43=EOMONTH(AV43,0),AV43,""))) -> 1994-03-31 | BJ47: =IFERROR(DATEDIF(AD47,AV47,"M")+1,"") -> 3 | BN47: =IF(BJ47="","",VLOOKUP(F43,除算!$F$3:$G$11,2,FALSE)) -> 2 | BR47: =IF(BJ47="",0,(ROUNDDOWN(BJ47/BN47,1))) -> 1.5
AH49: 除算② | AR49: =IFERROR(ROUNDDOWN(BV46/12,0),0) -> 0 | AV49: 年 | AZ49: =IFERROR(MOD(BV46,12),0) -> 1.5 | BD49: 月除算
B53: (3) | F53: 休職 | AD53: 2019-01-02 | AR53: から | AV53: 2019-03-31 | BJ53: まで
P55: 子が１歳になる日 | BL55: 月数 | BN55: 割合
F56: =EOMONTH(P56,-1) ->  | P56: =IF(F53="育休",P53+364,"") ->  | AA56: ① | AD56: =IF(AD53="","",IF(DAY(AD53)=1,AD53,IF(DAY(AD53)<>1,EOMONTH(AD53,0)+1,""))) -> 2019-02-01 | AV56: =IF(AV53>P56,EOMONTH(F56,1),IF(AV53="","",IF(EOMONTH(AV53,0)<>AV53,EOMONTH(AV53,-1),IF(AV53=EOMONTH(AV53,0),AV53,"")))) -> 2019-03-31 | BJ56: =IFERROR(DATEDIF(AD56,AV56,"M")+1,"") -> 2 | BN56: =IFERROR(VLOOKUP(F53,除算!$B$3:$C$11,2,FALSE),"") -> 2 | BR56: =IFERROR(ROUNDDOWN(BJ56/BN56,1),0) -> 1 | BV56: =IFERROR(BR56+BR57,"") -> 1
AA57: ② | AD57: =IF(AV56<>AV53,AV56+1,"") ->  | AV57: =IF(AV53="","",IF(EOMONTH(AV53,0)<>AV53,EOMONTH(AV53,-1),IF(AV53=EOMONTH(AV53,0),AV53,""))) -> 2019-03-31 | BJ57: =IFERROR(DATEDIF(AD57,AV57,"M")+1,"") ->  | BN57: =IF(BJ57="","",VLOOKUP(F53,除算!$F$3:$G$11,2,FALSE)) ->  | BR57: =IF(BJ57="",0,(ROUNDDOWN(BJ57/BN57,1))) -> 0
AH59: 除算③ | AR59: =IFERROR(ROUNDDOWN(BV56/12,0),0) -> 0 | AV59: 年 | AZ59: =IFERROR(MOD(BV56,12),0) -> 1 | BD59: 月除算
B63: (4) | AR63: から | BJ63: まで
P65: 子が１歳になる日 | BL65: 月数 | BN65: 割合
F66: =EOMONTH(P66,-1) ->  | P66: =IF(F63="育休",P63+364,"") ->  | AA66: ① | AD66: =IF(AD63="","",IF(DAY(AD63)=1,AD63,IF(DAY(AD63)<>1,EOMONTH(AD63,0)+1,""))) ->  | AV66: =IF(AV63>P66,EOMONTH(F66,1),IF(AV63="","",IF(EOMONTH(AV63,0)<>AV63,EOMONTH(AV63,-1),IF(AV63=EOMONTH(AV63,0),AV63,"")))) ->  | BJ66: =IFERROR(DATEDIF(AD66,AV66,"M")+1,"") ->  | BN66: =IFERROR(VLOOKUP(F63,除算!$B$3:$C$11,2,FALSE),"") ->  | BR66: =IFERROR(ROUNDDOWN(BJ66/BN66,1),0) -> 0 | BV66: =IFERROR(BR66+BR67,"") -> 0
AA67: ② | AD67: =IF(AV66<>AV63,AV66+1,"") ->  | AV67: =IF(AV63="","",IF(EOMONTH(AV63,0)<>AV63,EOMONTH(AV63,-1),IF(AV63=EOMONTH(AV63,0),AV63,""))) ->  | BJ67: =IFERROR(DATEDIF(AD67,AV67,"M")+1,"") ->  | BN67: =IF(BJ67="","",VLOOKUP(F63,除算!$F$3:$G$11,2,FALSE)) ->  | BR67: =IF(BJ67="",0,(ROUNDDOWN(BJ67/BN67,1))) -> 0
BO68: ｂ | BR68: =IFERROR(BO69*12+BS69,0) -> 5.8
AH69: 除算④ | AR69: =IFERROR(ROUNDDOWN(BV66/12,0),0) -> 0 | AV69: 年 | AZ69: =IFERROR(MOD(BV66,12),0) -> 0 | BD69: 月除算 | BO69: =IFERROR(AR69+AR59+AR49+AR39,"")+P81 -> 0 | BR69: 年 | BS69: =IFERROR(AZ69+AZ59+AZ49+AZ39,"")+W81 -> 5.8 | BV69: 月
F72: ※事由が育休の場合は入力してください。 当該育児休業に係る子が１歳に達した日の属する月までの期間についてはその月の３分の１が除算されます。 上記以外の期間については２分の１が除算されるため，期間を 「１歳に達した日の属する月まで」と 「１歳達した日の属する月の翌月から」に それぞれ分けて入力願います。
B80: (5) | F80: 除算期間が５つ | P80: さらに除く年月数 | AF80: 勤続年数は | AW80: =IF(BO81="",0,IF(AND(BO81>=6,BO81<12),1,IFERROR(ROUNDDOWN(BO81/12,0),"1"))) -> 34 | BJ80: 年 | BO80: a-b
F81: 以上ある場合 | U81: 年 | AB81: 月 | BO81: =IF(BP26="","",IFERROR(BP26-BR68,"")) -> 414.2
BD82: （１年未満切り捨て）
B84: ※ 古い発令から入力してください。（昭和→平成→令和の発令の順）
B85: ※ 除算期間が５つ以上ある場合は，福利厚生ハンドブック ２７頁を参考に除算年月を計算し，
B86: (5)に入力してください。
A89: 4 | B89: 現在の給料表、号俸（号俸が不明なときは号俸右側の青いセルに金額を入力）と、教職調整額、
B90: 給料の調整額（発令されている場合）を入力してください。
B92: 給料表 | U92: 号俸 | AN92: ※号俸が不明な場合、月額を入力
B93: 教育（一） | U93: 2 | Z93: 級 | AC93: 140 | AH93: 号俸 | BA93: 円
U96: =IFERROR(給料表計算シート!E12,"") -> 417900 | AN96: =IF(AN93>0,AN93,U96) -> 417900
B97: 労務職員（技能職給料表適用職員）の場合は平成２７年３月３１日現在の号俸も入力して下さい。 | U97: Ｈ27.3.31現在号俸 | AN97: Ｈ27.3.31現在仮定月額
R98: ⇒ | Z98: 級 | AH98: 号俸 | AN98: =IF(給料表計算シート!E21="",0,給料表計算シート!E21) -> 0 | BA98: 円
B101: 本俸（給料表上の月額） | U101: 教職調整額 | AN101: 給料の調整額
B102: =IF(AN96>AN98,AN96,IF(U96>AN98,U96,AN98)) -> 417900 | O102: 円 | U102: 16716 | AH102: 円 | BA102: 円 | BG102: =SUM(B102+U102+AN102) -> 434616
A105: ※ | B105: 教育（一）は高校等の教員，教育（二）は小中学校の教員の給料表です。
A107: ※ | B107: 医療職（二）は栄養職員の給料表です。医療職（三）は蔵王自然の家の養護教諭の給料表です。
A109: ※ | B109: 特２級（主幹教諭）の場合は，号俸の級は「２５」と入力してください。
A119: 5 | B119: 調整額を算出するため，月数を入力してください。（月額の高い方から６０月分まで加算）
B120: 区分 | F120: 第１号 | L120: 第２号 | R120: 第３号 | X120: 第４号 | AD120: 第５号 | AJ120: 第６号 | AP120: 第７号 | AV120: 第８号 | BB120: 第９号 | BH120: 第１０号
B122: 月額 | F122: 78750 | L122: 70400 | R122: 65000 | X122: 59550 | AD122: 54150 | AJ122: 43350 | AP122: 32500 | AV122: 27100 | BB122: 21700 | BH122: 0
B124: 調整 月数 | J124: 月 | P124: 月 | V124: 月 | AB124: 月 | AH124: 月 | AN124: 月 | AT124: 月 | AV124: 60 | AZ124: 月 | BF124: 月 | BL124: 月
B126: 小計 | F126: =IF(AND($B$14="自己都合",$AW$80<10),0,IF(AND($B$14="自己都合",9<$AW$80,$AW$80<25),F122*F124/2,IF(AND($B$14="勧奨（定年）",$AW$80<5),F122*F124/2,F122*F124))) -> 0 | J126: 円 | L126: =IF(AND($B$14="自己都合",$AW$80<10),0,IF(AND($B$14="自己都合",9<$AW$80,$AW$80<25),L122*L124/2,IF(AND($B$14="勧奨（定年）",$AW$80<5),L122*L124/2,L122*L124))) -> 0 | P126: 円 | R126: =IF(AND($B$14="自己都合",$AW$80<10),0,IF(AND($B$14="自己都合",9<$AW$80,$AW$80<25),R122*R124/2,IF(AND($B$14="勧奨（定年）",$AW$80<5),R122*R124/2,R122*R124))) -> 0 | V126: 円 | X126: =IF(AND($B$14="自己都合",$AW$80<10),0,IF(AND($B$14="自己都合",9<$AW$80,$AW$80<25),X122*X124/2,IF(AND($B$14="勧奨（定年）",$AW$80<5),X122*X124/2,X122*X124))) -> 0 | AB126: 円 | AD126: =IF(AND($B$14="自己都合",$AW$80<10),0,IF(AND($B$14="自己都合",9<$AW$80,$AW$80<25),AD122*AD124/2,IF(AND($B$14="勧奨（定年）",$AW$80<5),AD122*AD124/2,AD122*AD124))) -> 0 | AH126: 円 | AJ126: =IF(AND($B$14="自己都合",$AW$80<10),0,IF(AND($B$14="自己都合",9<$AW$80,$AW$80<25),AJ122*AJ124/2,IF(AND($B$14="勧奨（定年）",$AW$80<5),AJ122*AJ124/2,AJ122*AJ124))) -> 0 | AN126: 円 | AP126: =IF(AND($B$14="自己都合",$AW$80<10),0,IF(AND($B$14="自己都合",9<$AW$80,$AW$80<25),AP122*AP124/2,IF(AND($B$14="勧奨（定年）",$AW$80<5),AP122*AP124/2,AP122*AP124))) -> 0 | AT126: 円 | AV126: =IF(AND($B$14="自己都合",$AW$80<10),0,IF(AND($B$14="自己都合",9<$AW$80,$AW$80<25),AV122*AV124/2,IF(AND($B$14="勧奨（定年）",$AW$80<5),AV122*AV124/2,AV122*AV124))) -> 1626000 | AZ126: 円 | BB126: =IF(AND($B$14="自己都合",$AW$80<10),0,IF(AND($B$14="自己都合",9<$AW$80,$AW$80<25),BB122*BB124/2,IF(AND($B$14="勧奨（定年）",$AW$80<5),BB122*BB124/2,BB122*BB124))) -> 0 | BF126: 円 | BH126: =BH122*BH124 -> 0 | BL126: 円
B128: =IF(F124+L124+R124+X124+AD124+AJ124+AP124+AV124+BB124+BH124<61,"","合計月数が60月以内になるように入力してください。") ->  | AJ128: 合計 | AT128: =F124+L124+R124+X124+AD124+AJ124+AP124+AV124+BB124+BH124 -> 60 | AZ128: =IF(F124+L124+R124+X124+AD124+AJ124+AP124+AV124+BB124+BH124<61,F126+L126+R126+X126+AD126+AJ126+AP126+AV126+BB126+BH126,"再入力") -> 1626000 | BL128: 円
B129: ※H27.3.31の調整額
B130: 調整 月数 | J130: 月 | P130: 月 | V130: 月 | X130: =Sheet2!C21 -> 0 | AB130: 月 | AD130: =Sheet2!D21 -> 0 | AH130: 月 | AJ130: =Sheet2!E21 -> 0 | AN130: 月 | AP130: =Sheet2!F21 -> 0 | AT130: 月 | AV130: =Sheet2!G21 -> 60 | AZ130: 月 | BB130: =Sheet2!H21 -> 0 | BF130: 月 | BH130: =Sheet2!I21 -> 0 | BL130: 月
B132: 小計 | F132: =IF(AND($B$17="自己都合",$AW$80+1<10),0,IF(AND($B$17="自己都合",9<$AW$80+1,$AW$80+1<25),F122*F130/2,IF(AND($B$17="勧奨（定年）",$AW$80+1<5),F122*F130/2,F122*F130))) -> 0 | J132: 円 | L132: =IF(AND($B$17="自己都合",$AW$80+1<10),0,IF(AND($B$17="自己都合",9<$AW$80+1,$AW$80+1<25),L122*L130/2,IF(AND($B$17="勧奨（定年）",$AW$80+1<5),L122*L130/2,L122*L130))) -> 0 | P132: 円 | R132: =IF(AND($B$17="自己都合",$AW$80+1<10),0,IF(AND($B$17="自己都合",9<$AW$80+1,$AW$80+1<25),R122*R130/2,IF(AND($B$17="勧奨（定年）",$AW$80+1<5),R122*R130/2,R122*R130))) -> 0 | V132: 円 | X132: =IF(AND($B$17="自己都合",$AW$80+1<10),0,IF(AND($B$17="自己都合",9<$AW$80+1,$AW$80+1<25),X122*X130/2,IF(AND($B$17="勧奨（定年）",$AW$80+1<5),X122*X130/2,X122*X130))) -> 0 | AB132: 円 | AD132: =IF(AND($B$17="自己都合",$AW$80+1<10),0,IF(AND($B$17="自己都合",9<$AW$80+1,$AW$80+1<25),AD122*AD130/2,IF(AND($B$17="勧奨（定年）",$AW$80+1<5),AD122*AD130/2,AD122*AD130))) -> 0 | AH132: 円 | AJ132: =IF(AND($B$17="自己都合",$AW$80+1<10),0,IF(AND($B$17="自己都合",9<$AW$80+1,$AW$80+1<25),AJ122*AJ130/2,IF(AND($B$17="勧奨（定年）",$AW$80+1<5),AJ122*AJ130/2,AJ122*AJ130))) -> 0 | AN132: 円 | AP132: =IF(AND($B$17="自己都合",$AW$80+1<10),0,IF(AND($B$17="自己都合",9<$AW$80+1,$AW$80+1<25),AP122*AP130/2,IF(AND($B$17="勧奨（定年）",$AW$80+1<5),AP122*AP130/2,AP122*AP130))) -> 0 | AT132: 円 | AV132: =IF(AND($B$17="自己都合",$AW$80+1<10),0,IF(AND($B$17="自己都合",9<$AW$80+1,$AW$80+1<25),AV122*AV130/2,IF(AND($B$17="勧奨（定年）",$AW$80+1<5),AV122*AV130/2,AV122*AV130))) -> 1626000 | AZ132: 円 | BB132: =IF(AW80+1<25,0,BB122*BB130) -> 0 | BF132: 円 | BH132: =BH122*BH130 -> 0 | BL132: 円
B134: =IF(F130+L130+R130+X130+AD130+AJ130+AP130+AV130+BB130+BH130<61,"","調整月数が60月以内になるように下記表で調整してください。") ->  | AJ134: 合計 | AT134: =F130+L130+R130+X130+AD130+AJ130+AP130+AV130+BB130+BH130 -> 60 | AZ134: =IF(F130+L130+R130+X130+AD130+AJ130+AP130+AV130+BB130+BH130<61,F132+L132+R132+X132+AD132+AJ132+AP132+AV132+BB132+BH132,"下記表↓へ") -> 1626000 | BL134: 円
B135: 自動計算されたH27,3,31現在の調整額の合計が６０月を越える場合は６０月になるように調整してください。
B136: 減ずる月 | J136: 月 | P136: 月 | V136: 月 | AB136: 月 | AH136: 月 | AN136: 月 | AT136: 月 | AZ136: 月 | BF136: 月 | BL136: 月
B137: 調整 月数 | F137: =F130+F136 -> 0 | J137: 月 | L137: =L130+L136 -> 0 | P137: 月 | R137: =R130+R136 -> 0 | V137: 月 | X137: =X130+X136 -> 0 | AB137: 月 | AD137: =AD130+AD136 -> 0 | AH137: 月 | AJ137: =AJ130+AJ136 -> 0 | AN137: 月 | AP137: =AP130+AP136 -> 0 | AT137: 月 | AV137: =AV130+AV136 -> 60 | AZ137: 月 | BB137: =BB130+BB136 -> 0 | BF137: 月 | BH137: =BH130+BH136 -> 0 | BL137: 月 | BP137: =SUM(F137+L137+R137+X137+AD137+AJ137+AP137+AV137+BB137+BH137) -> 60
B138: =IF(F137+L137+R137+X137+AD137+AJ137+AP137+AV137+BB137+BH137>60,"６０月以内になるように調整してください","") ->  | AJ138: 合計 | AT138: =SUM(F137+L137+R137+X137+AD137+AJ137+AP137+AV137+BB137+BH137) -> 60 | AZ138: =IF(BP137>61,"調整",F137*F122+L122*L137+R122*R137+X122*X137+AD122*AD137+AJ122*AJ137+AP122*AP137+AV122*AV137+BB122*BB137+BH122*BH137) -> 1626000 | BL138: 円
B140: ※調整区分が分からない場合は、以下を参考にしてください。
B153: ※調整額から除算される休職月等（福利厚生ハンドブック ２８項参照）は計算されないため、該当する
C154: 場合は別途計算が必要になります。
B156: ↓次ページ 調整区分の算出例、調整区分表
B158: ※調整区分の算出例
D159: ・ 大学卒業後教員に採用されるまで在家庭。
D160: ・ 令和５年度末退職日において勤続年数２６年，高等学校教諭。
D161: ・ 休職等，除算される期間なし。（福利厚生ハンドブック ２８頁参照）
D162: ・ 教育職給料表（一）２級１３４号俸。令和５年４月から期末加算割合１０％
D163: 平成１９年４月から期末加算割合５％。 | AM163: ・・・と，このような場合は
C164: ◎月額の高い方から６０月分までが加算されるので，調整区分表を参照し，
C165: ８号区分が１２月、９号区分が４８月となる。
E166: よって，調整額は
H167: ２７，１００円×１２月＋２１，７００円×４８月＝１，３６６，８００円

Sheet Sheet1 (hidden)
B2: 行政職給料表が適用されている者
B3: 退職時前５年間の号俸を確認してください。
B4: 例１）退職時前５年間 ２級 である。
B5: 第10号区分に ６０月 と入力します。
B6: 例２）退職時より３年前に４級に昇給し、それ以前は３級であった。
B7: 第9号区分に ２４月（２年間）、第8号区分に ３６月（３年間）と入力します。
B9: 教職職給料表(一)(二)が適用されている者
B10: 校長職にある者・・・第５号区分に ６０月 と入力
B11: 副校長職にある者・・・第６号区分に ６０月 と入力
B12: 教頭職にある者・・・第７号区分に ６０月 と入力
B13: 特２級の者・・・第８号区分に ６０月 と入力
B14: ２級の者のうち，勤続期間が１０年以上２６年未満の者・・・第９号区分に ６０月 と入力
B15: ２級の者のうち，勤続期間が２６年以上３５年未満の者・・・第８号区分に ６０月 と入力
B16: ２級の者のうち，勤続期間が３５年以上の者・・・第７号区分に３６月、第８号区分に２４月と入力
B17: １級又は２級の者・・・第１０号区分に ６０月 と入力

Sheet 印刷シート
B2: 退職手当計算内訳書 （試算） | J2: 氏名： | L2: =IF(入力シート!B9="","",入力シート!B9) -> 福 梨花 | O2: =TODAY() -> 2023-08-07 | T2: 現在 | AB2: =IF(入力シート!B14="自己都合","自己都合",IF(入力シート!B14="定年","定年")) -> 定年
J3: 事由： | L3: =$AB$2&"退職" -> 定年退職
B4: 退 | C4: 給 | J4: 勤 | K4: 在職年数 | L4: =入力シート!P26 -> 1989-04-01 | P4: から
B5: 職 | C5: 料 | D5: 級号俸 | F5: =IF(入力シート!U93="","",IF(F8=入力シート!AN98,入力シート!U98,入力シート!U93)) -> 2 | G5: 級 | H5: =IF(入力シート!AC93="","",IF(F8=入力シート!AN98,入力シート!AC98,入力シート!AC93)) -> 140 | I5: 号俸 | J5: 続 | L5: =入力シート!P28 -> 2024-03-31 | P5: まで | R5: =入力シート!$AX$26 -> 35 | S5: 年 | T5: =入力シート!$BF$26 -> 0 | U5: 月
B6: 時 | C6: 月 | J6: 年 | L6: 計(ｱ) | R6: =R5 -> 35 | S6: 年 | T6: =T5 -> 0 | U6: 月 | W6: =R6*12+T6 -> 420
B7: の | C7: 額 | J7: 数 | K7: 除算年数 | L7: =IF(AND(入力シート!AR39=0,入力シート!AZ39=0),"",入力シート!AD36) -> 1993-03-01 | M7: から | P7: =IF(L7="","",入力シート!F33) -> 育休
B8: 給 | D8: 給料(A) | F8: =入力シート!$B$102 -> 417900 | I8: 円 | L8: =IF(AND(入力シート!AR39=0,入力シート!AZ39=0),"",入力シート!AV37) -> 1993-12-31 | M8: まで | O8: =IF(P7="","","(1)") -> (1) | R8: =IF(P7="","",入力シート!AR39) -> 0 | S8: 年 | T8: =IF(P7="","",入力シート!AZ39) -> 3.3 | U8: 月
B9: 与 | L9: =IF(AND(入力シート!AR49=0,入力シート!AZ49=0),"",入力シート!AD46) -> 1994-01-01 | M9: から | P9: =IF(L9="","",入力シート!F43) -> 育休
B10: 等 | L10: =IF(AND(入力シート!AR49=0,入力シート!AZ49=0),"",入力シート!AV47) -> 1994-03-31 | M10: まで | O10: =IF(P9="","","(2)") -> (2) | R10: =IF(P9="","",入力シート!AR49) -> 0 | S10: 年 | T10: =IF(P9="","",入力シート!AZ49) -> 1.5 | U10: 月
L11: =IF(AND(入力シート!AR59=0,入力シート!AZ59=0),"",入力シート!AD56) -> 2019-02-01 | M11: から | P11: =IF(L11="","",入力シート!F53) -> 休職 | W11: =SUM(R8:R15) -> 0
D12: 教職調整額(B) | F12: =入力シート!$U$102 -> 16716 | I12: 円 | L12: =IF(AND(入力シート!AR59=0,入力シート!AZ59=0),"",入力シート!AV57) -> 2019-03-31 | M12: まで | O12: =IF(P11="","","(3)") -> (3) | R12: =IF(P11="","",入力シート!AR59) -> 0 | S12: 年 | T12: =IF(P11="","",入力シート!AZ59) -> 1 | U12: 月 | W12: =ROUNDDOWN((W15)/12,0) -> 0
L13: =IF(AND(入力シート!AR69=0,入力シート!AZ69=0),"",入力シート!AD66) ->  | M13: から | P13: =IF(L13="","",入力シート!F63) ->  | W13: =MOD(W15,12) -> 5.8
L14: =IF(AND(入力シート!AR69=0,入力シート!AZ69=0),"",入力シート!AV67) ->  | M14: まで | O14: =IF(P13="","","(4)") ->  | R14: =IF(P13="","",入力シート!AR69) ->  | S14: 年 | T14: =IF(P13="","",入力シート!AZ69) ->  | U14: 月
D15: 給料の調整額(C) | F15: =入力シート!$AN$102 -> 0 | I15: 円 | L15: =IF(OR(R15<>"",T15<>""),"※５つ以上の期間","") ->  | O15: =IF(OR(R15<>"",T15<>""),"(5)","") ->  | R15: =IF(入力シート!P81="","",入力シート!P81) ->  | S15: =IF(O15="","","年") ->  | T15: =IF(入力シート!W81=0,"",入力シート!W81) ->  | U15: =IF(O15="","","月") ->  | W15: =SUM(T8:T15) -> 5.8
L16: 計(ｲ) | R16: =+W11+W12 -> 0 | S16: 年 | T16: =W13 -> 5.8 | U16: 月
D18: 計(D) | F18: =F8+F12+F15 -> 434616 | I18: 円 | K18: 合計(ｳ) =(ｱ)-(ｲ) | P18: =IF(W20>0,W20,0) -> 34 | Q18: 年 | R18: =IF(X20>0,X20,0) -> 6.2 | S18: 月( | T18: =IF(AND(P18<=0,R18>=6),P18+1,P18) -> 34 | U18: 年) | W18: =W6-(W13+(W11+W12)*12) -> 414.2
J19: (C)
J20: の | K20: 定額分 | N20: 調整数 | W20: =ROUNDDOWN(W18/12,0) -> 34 | X20: =W18-W20*12 -> 6.2
C21: 合計(基本給月額)(E) | F21: =F18 -> 434616 | I21: 円 | J21: 算 | M21: × | AB21: 事由 | AD21: 年数
J22: 式 | AB22: =入力シート!B14 -> 定年 | AC22: =IF(AB22="自己都合",2,1) -> 1 | AD22: =T18 -> 34 | AE22: =IF(AC22=1,"",IF(AND(AC22=2,AD22>19),2,1)) ->  | AF22: =IF(AC22=2,"",IF(AND(AD22>=20,AD22<=35),6,IF(AD22>35,7,""))) -> 6
B23: 退 | F23: 職員の退職手当に関する条例第 | M23: =VLOOKUP(AE$25,X$23:Z$27,2) -> 5 | N23: 条 | O23: 第 | P23: =VLOOKUP($AE$25,$X$23:$Z$27,3) -> 1 | Q23: 項 | X23: 1 | Y23: 3 | Z23: 2 | AE23: =IF(AC22=2,"",IF(AND(AC22=1,AD22<12),3,IF(AND(AC22=1,AD22>=11,AD22<25),4,5))) -> 5 | AG23: 1 | AH23: 自己都合 | AI23: ～１９
B24: 職 | C24: 適用条項 | F24: 昭和 | G24: =IFERROR(VLOOKUP($AF$22,$X$28:$Z$29,2),"") -> 本則 | H24: 年条例第 | J24: =IFERROR(VLOOKUP($AF$22,$X$28:$AA$29,3),"") -> 附則 | L24: 号附則第 | M24: =IFERROR(VLOOKUP($AF$22,$X$28:$AA$29,4),"") -> 21 | O24: 項 | X24: 2 | Y24: 3 | Z24: 1 | AG24: 2 | AH24: 自己都合 | AI24: ２０～
B25: 手 | F25: 昭和 | G25: =IF(ISERROR(LOOKUP(#REF!,#REF!,#REF!)),"",LOOKUP(#REF!,#REF!,#REF!)) ->  | H25: 年条例第 | J25: =IF(ISERROR(LOOKUP(#REF!,#REF!,#REF!)),"",LOOKUP(#REF!,#REF!,#REF!)) ->  | L25: 号附則第 | N25: =IF(ISERROR(LOOKUP(#REF!,#REF!,#REF!)),"",LOOKUP(#REF!,#REF!,#REF!)) ->  | O25: 項 | X25: 3 | Y25: 3 | Z25: 1 | AE25: =SUM(AE22:AE24) -> 5 | AG25: 3 | AH25: 定年 | AI25: ～１１
B26: 当 | F26: 給料月額(EまたはF) | J26: (ｳ)の支給割合 | N26: 調整額 | U26: 退職手当額 | X26: 4 | Y26: 4 | Z26: 1 | AG26: 4 | AH26: 定年 | AI26: １１～２４
C27: 退職手当額の計算 | F27: =F21 -> 434616 | I27: 円 | J27: × | L27: =IFERROR(IF(計算シート!M6="","",計算シート!M6),0) -> 46.83015 | M27: ＋ | N27: =O28 -> 1626000 | Q27: ＝ | R27: =TRUNC(F27*L27)+N27 -> 21979132 | U27: 円 | X27: 5 | Y27: 5 | Z27: 1 | AG27: 5 | AH27: 定年 | AI27: ２５～
F28: ･ | G28: 調整額 | J28: 合計 | L28: =入力シート!$AT$128 -> 60 | M28: 月 | O28: =入力シート!$AZ$128 -> 1626000 | R28: 円 | S28: =IF(ISERROR(#REF!*#REF!),"","(月額 "&#REF!&"円)") ->  | X28: 6 | Y28: 本則 | Z28: 附則 | AA28: 21 | AG28: 6 | AH28: 定年等 | AI28: ２０～３５
S29: =IF(ISERROR(#REF!*#REF!),"","(月額 "&#REF!&"円)") ->  | X29: 7 | Y29: 本則 | Z29: 附則 | AA29: 23 | AG29: 7 | AH29: 定年等 | AI29: ３６～
B30: ※退職手当額（概算） | F30: =R27 -> 21979132 | I30: 円
J31: ※ 退職時のおおよその金額です。
K32: 正確な退職手当額は経過措置や昇給等を考慮した上で
B33: 控 | C33: 徴 | D33: ①所得税 | I33: 円 | K33: 決定されることとなりますので，参考程度にお考えくださ
B34: 除 | C34: 収 | D34: ②市町村民税 | I34: 円 | K34: い。
B35: 額 | C35: 税 | D35: ③県民税 | I35: 円 | K35: また，この試算書は今後の退職手当額を保障するも
C36: 額 | D36: 計 | I36: 円 | K36: のではありません。
C37: ④給与に係る住民税 | K37: （今後の条例改正等により実際の退職手当額が試算額
C38: 一括徴収税額 | I38: 円 | K38: を下回ることがあります。）
C39: ⑤共済組合貸付償還金 | I39: 円
I40: 円
I41: 円 | K41: なお，実際は，左記①～⑤を控除した残額が支給額と
C42: =IF(OR(F42=0,F42=""),"","その他(法務局供託金)") ->  | I42: 円 | K42: なります。
C43: 合計 | I43: 円
B44: 現金支給額 | I44: 円 | K44: 入力シートに入力した内容に誤りがある場合は，正しく
B45: 住民税納 | E45: 退職所得分 | K45: 計算されません。
B46: 入市町村 | E46: 一括住民税

Sheet 【参考】調整額区分表
A1: 退職手当の調整額に関する区分表
A3: イ １９年３月３１日までの適用区分
A4: 区分 | B4: 第１号 | C4: 第２号 | D4: 第３号 | E4: 第４号 | F4: 第５号 | G4: 第６号 | H4: 第７号 | I4: 第８号 | J4: 第９号 | K4: 第１０号
A5: 調整月額 | B5: 78750 | C5: 70400 | D5: 65000 | E5: 59550 | F5: 54150 | G5: 43350 | H5: 32500 | I5: 27100 | J5: 21700 | K5: 0
A6: 行政職 | D6: １１級 期20% | E6: １０級 期20% | F6: ９級 期15% | G6: ８級 期15% | H6: ７級 期10% | I6: ６級 期10% | J6: ５級・４級 期5% | K6: ３級・２級・１級
A7: 教育職(二) | E7: ４級 期20% | F7: ４級 管16%・管14% 期15% | G7: ４級 期15% | H7: ３級 期10% ２級期10%のうち注８の者 | I7: ２級 期10% | J7: ２級・１級 期5% | K7: ２級・１級
A8: 教育職(三) | E8: ４級 期20% | F8: ４級 管16%・管14% 期15% | G8: ４級 期15% | H8: ３級 期10% ２級期10%のうち注８の者 | I8: ２級 期10% | J8: ２級 期5% | K8: ２級・１級
A9: 研究職 | D9: ５級 管25% 期20% | E9: ５級 期20% | F9: ４級 管18% 期15% | G9: ４級 期15% ３級のうち注４の職 | H9: ３級のうち注５の職 | I9: ３級 期10% | J9: ２級 期5% | K9: ２級・１級
A10: 医療職(二) 医療職(三) | F10: ７級 期15% | G10: ６級 期15% | H10: ５級のうち注６の職 | I10: ５級 期10% | J10: ４級 期5% ３級 期5% | K10: 3級・2級・1級
A11: 技能職 | I11: ５級 期10% | J11: ４級 期5% ３級 期5% ２級 期5% | K11: ４級・３級・ ２級・１級
A13: ロ １９年４月１日から21年３月31日までの適用区分
A14: 区分 | B14: 第１号 | C14: 第２号 | D14: 第３号 | E14: 第４号 | F14: 第５号 | G14: 第６号 | H14: 第７号 | I14: 第８号 | J14: 第９号 | K14: 第１０号
A15: 調整月額 | B15: 78750 | C15: 70400 | D15: 65000 | E15: 59550 | F15: 54150 | G15: 43350 | H15: 32500 | I15: 27100 | J15: 21700 | K15: 0
A16: 行政職 | C16: １０級 期20% | D16: ９級 期20% | E16: ８級 期20% | F16: ７級 期15% | G16: ６級 期15% | H16: ５級 期10% | I16: ４級 期10% | J16: ３級 期5% | K16: ２級・１級
A17: 教育職(二) | E17: ４級 期20% | F17: ４級 管６種 期15% | G17: ４級 期15% | H17: ３級 期10% ２級期10%のうち注８の者 | I17: ２級 期10% | J17: ２級・１級 期5% | K17: ２級・１級
A18: 教育職(三) | E18: ４級 期20% | F18: ４級 管６種 期15% | G18: ４級 期15% | H18: ３級 期10% ２級期10%のうち注８の者 | I18: ２級 期10% | J18: ２級 期5% | K18: ２級・１級
A19: 研究職 | D19: ５級 管１種 期20% | E19: ５級 期20% | F19: ４級 管４種 期15% | G19: ４級 期15% ３級のうち注４の職 | H19: ３級のうち注５の職 | I19: ３級 期10% | J19: ２級 期5% | K19: ２級・１級
A20: 医療職(二) 医療職(三) | F20: ７級 期15% | G20: ６級 期15% | H20: ５級のうち注７の職 | I20: ５級 期10% | J20: ４級 期5% ３級 期5% | K20: 3級・2級・1級
A21: 技能職 | I21: ４級 期10% | J21: ３級 期5% ２級 期5% | K21: ３級・２級・１級
A23: ハ ２１年４月１日からの適用区分（技能職については平成２７年３月３１日までの適用区分）
A24: 区分 | B24: 第１号 | C24: 第２号 | D24: 第３号 | E24: 第４号 | F24: 第５号 | G24: 第６号 | H24: 第７号 | I24: 第８号 | J24: 第９号 | K24: 第１０号
A25: 調整月額 | B25: 78750 | C25: 70400 | D25: 65000 | E25: 59550 | F25: 54150 | G25: 43350 | H25: 32500 | I25: 27100 | J25: 21700 | K25: 0
A26: 行政職 | C26: １０級 期20% | D26: ９級 期20% | E26: ８級 期20% | F26: ７級 期15% | G26: ６級 期15% | H26: ５級 期10% | I26: ４級 期10% | J26: ３級 期5% | K26: ２級・１級
A27: 教育職(一) | E27: ４級 期20% | F27: ４級 管６種 期15% | G27: ４級期15% ３級管６種 | H27: ３級 期10% ２級期10%のうち注８の者 特２級のうち特２級在職４年以上又は注８の者 | I27: ２級期10% 特２級 | J27: ２級・１級 期5% | K27: ２級・１級
A28: 教育職(二) | E28: ４級 期20% | F28: ４級 管６種 期15% | G28: ４級期15% ３級管６種 | H28: ３級 期10% ２級期10%のうち注８の者 特２級のうち特２級在職４年以上又は注８の者 | I28: ２級期10% 特２級 | J28: ２級 期5% | K28: ２級・１級
A29: 研究職 | D29: ５級 管１種 期20% | E29: ５級 期20% | F29: ４級 管４種 期15% | G29: ４級 期15% ３級のうち注４の職 | H29: ３級のうち注５の職 | I29: ３級 期10% | J29: ２級 期5% | K29: ２級・１級
A30: 医療職(二) 医療職(三) | F30: ７級 期15% | G30: ６級 期15% | H30: ５級のうち注７の職 | I30: ５級 期10% | J30: ４級 期5% ３級 期5% | K30: 3級・2級・1級
A31: 技能職 | I31: ４級 期10% | J31: ３級 期5% ２級 期5% | K31: ３級・２級・１級
A33: ニ ２７年４月１日からの適用区分
A34: 区分 | B34: 第１号 | C34: 第２号 | D34: 第３号 | E34: 第４号 | F34: 第５号 | G34: 第６号 | H34: 第７号 | I34: 第８号 | J34: 第９号 | K34: 第１０号
A35: 調整月額 | B35: 78750 | C35: 70400 | D35: 65000 | E35: 59550 | F35: 54150 | G35: 43350 | H35: 32500 | I35: 27100 | J35: 21700 | K35: 0
A36: 技能職 | I36: ５級 期10% | J36: ４級 期5% ３級 期5% | K36: ４級・３級・ ２級・１級
A38: 注１ 期 ％ ： 期末手当等の役職段階別加算割合 | G38: 注８ 勤続期間が博士課程修了にあっては30年以上，修士課程修了に
A39: 注２ 管 ％ ： 管理職手当の支給割合 | G39: あっては33年以上，大学卒にあっては35年以上，短大卒にあっては
A40: 注３ 管 種 ： 管理職手当の支給額により区分 | G40: 37年以上，高校卒にあっては39年以上であった者
A41: 注４ 技術副参事，総括研究員
A42: 注５ 技術補佐，技術次長又は上席主任研究員
A43: 注６ 技術補佐，技術次長又は上席技術主幹
A44: 注７ 技術補佐，技術次長

Sheet 特に級読替表
B1: 行 政 職 給 料 表
C4: 職務 | D4: １ 級 | F4: ２ 級 | H4: ３ 級 | J4: ４ 級 | L4: ５ 級 | N4: ６ 級 | P4: ７ 級 | R4: ８ 級 | T4: ９ 級
C5: の級
B6: 特 に | D6: 読 替 号 俸
E7: 号俸 | G7: 号俸 | I7: 号俸 | K7: 号俸 | M7: 号俸 | O7: 号俸 | Q7: 号俸 | S7: 号俸 | U7: 号俸
B8: 特(1) | D8: 189000 | E8: 17 | F8: 245400 | G8: 20 | H8: 317400 | I8: 33 | J8: 364700 | K8: 29 | L8: 382200 | M8: 27 | N8: 417900 | O8: 25 | P8: 428400 | Q8: 23 | R8: 452300 | S8: 22 | T8: 488400 | U8: 19
B9: 特(2) | D9: 190600 | E9: =E8+1 -> 18 | F9: 247200 | G9: =G8+1 -> 21 | H9: 319200 | I9: =I8+1 -> 34 | J9: 366900 | K9: =K8+1 -> 30 | L9: 384800 | M9: =M8+1 -> 28 | N9: 421300 | O9: =O8+1 -> 26 | P9: 431900 | Q9: =Q8+1 -> 24 | R9: 455900 | S9: =S8+1 -> 23 | T9: 492500 | U9: =U8+1 -> 20
B10: 特(3) | D10: 192200 | E10: =E9+1 -> 19 | F10: 249000 | G10: =G9+1 -> 22 | H10: 321000 | I10: =I9+1 -> 35 | J10: 369100 | K10: =K9+1 -> 31 | L10: 387400 | M10: =M9+1 -> 29 | N10: 424700 | O10: =O9+1 -> 27 | P10: 435400 | Q10: =Q9+1 -> 25 | R10: 459500 | S10: =S9+1 -> 24 | T10: 496600 | U10: =U9+1 -> 21
B11: 特(4) | D11: 193800 | E11: =E10+1 -> 20 | F11: 250800 | G11: =G10+1 -> 23 | H11: 322800 | I11: =I10+1 -> 36 | J11: 371300 | K11: =K10+1 -> 32 | L11: 390000 | M11: =M10+1 -> 30 | N11: 428100 | O11: =O10+1 -> 28 | P11: 438900 | Q11: =Q10+1 -> 26 | R11: 463100 | S11: =S10+1 -> 25 | T11: 500700 | U11: =U10+1 -> 22
B12: 特(5) | D12: 195400 | E12: =E11+1 -> 21 | F12: 252600 | G12: =G11+1 -> 24 | H12: 324600 | I12: =I11+1 -> 37 | J12: 373500 | K12: =K11+1 -> 33 | L12: 392600 | M12: =M11+1 -> 31 | N12: 431500 | O12: =O11+1 -> 29 | P12: 442400 | Q12: =Q11+1 -> 27 | R12: 466700 | S12: =S11+1 -> 26 | T12: 504800 | U12: =U11+1 -> 23
B15: 教 育 職 給 料 表（二）県立 | N15: 教 育 職 給 料 表（三）小中
C18: 職務 | D18: １ 級 | F18: ２ 級 | H18: ３ 級 | J18: ４ 級 | N18: １ 級 | P18: ２ 級 | R18: ３ 級 | T18: ４ 級
C19: の級
B20: 特 に | D20: 読 替 号 俸 | N20: 読 替 号 俸
E21: 号俸 | G21: 号俸 | I21: 号俸 | K21: 号俸 | O21: 号俸 | Q21: 号俸 | S21: 号俸 | U21: 号俸
B22: 特(1) | D22: 361600 | E22: 41 | F22: 467300 | G22: 38 | H22: 505900 | I22: 24 | J22: 527900 | K22: 16 | N22: 315200 | O22: 34 | P22: 451900 | Q22: 41 | R22: 473000 | S22: 27 | T22: 500800 | U22: 16
B23: 特(2) | D23: 363600 | E23: =E22+1 -> 42 | F23: 470100 | G23: =G22+1 -> 39 | H23: 509900 | I23: =I22+1 -> 25 | J23: 532300 | K23: =K22+1 -> 17 | N23: 316900 | O23: =O22+1 -> 35 | P23: 454300 | Q23: =Q22+1 -> 42 | R23: 475800 | S23: =S22+1 -> 28 | T23: 504700 | U23: =U22+1 -> 17
B24: 特(3) | D24: 365600 | E24: =E23+1 -> 43 | F24: 472900 | G24: =G23+1 -> 40 | H24: 513900 | I24: =I23+1 -> 26 | J24: 536700 | K24: =K23+1 -> 18 | N24: 318600 | O24: =O23+1 -> 36 | P24: 456700 | Q24: =Q23+1 -> 43 | R24: 478600 | S24: =S23+1 -> 29 | T24: 508600 | U24: =U23+1 -> 18
B25: 特(4) | D25: 367600 | E25: =E24+1 -> 44 | F25: 475700 | G25: =G24+1 -> 41 | H25: 517900 | I25: =I24+1 -> 27 | J25: 541100 | K25: =K24+1 -> 19 | N25: 320300 | O25: =O24+1 -> 37 | P25: 459100 | Q25: =Q24+1 -> 44 | R25: 481400 | S25: =S24+1 -> 30 | T25: 512500 | U25: =U24+1 -> 19
B26: 特(5) | D26: 369600 | E26: =E25+1 -> 45 | F26: 478500 | G26: =G25+1 -> 42 | H26: 521900 | I26: =I25+1 -> 28 | J26: 545500 | K26: =K25+1 -> 20 | N26: 322000 | O26: =O25+1 -> 38 | P26: 461500 | Q26: =Q25+1 -> 45 | R26: 484200 | S26: =S25+1 -> 31 | T26: 516400 | U26: =U25+1 -> 20
B29: 医 療 職 給 料 表 （二） 栄養職
C31: 職務 | D31: １ 級 | F31: ２ 級 | H31: ３ 級 | J31: ４ 級 | L31: ５ 級 | N31: ６ 級 | P31: ７ 級 | S31: 履歴書に、
C32: の級 | S32: 「特に○○○○○円」と記載が
B33: 特 に | D33: 読 替 号 俸 | S33: ある場合は「特に級」発令者
E34: 号俸 | G34: 号俸 | I34: 号俸 | K34: 号俸 | M34: 号俸 | O34: 号俸 | Q34: 号俸 | S34: です。
B35: 特(1) | D35: 241900 | E35: 24 | F35: 303000 | G35: 29 | H35: 367700 | I35: 31 | J35: 386100 | K35: 28 | L35: 424100 | M35: 24 | N35: 452300 | O35: 22 | P35: 488400 | Q35: 19 | S35: その場合は、履歴書にある金額
B36: 特(2) | D36: 243600 | E36: =E35+1 -> 25 | F36: 304700 | G36: =G35+1 -> 30 | H36: 369900 | I36: =I35+1 -> 32 | J36: 388700 | K36: =K35+1 -> 29 | L36: 427500 | M36: =M35+1 -> 25 | N36: 455900 | O36: =O35+1 -> 23 | P36: 492500 | Q36: =Q35+1 -> 20 | S36: を参考に、読替号俸を、
B37: 特(3) | D37: 245300 | E37: =E36+1 -> 26 | F37: 306400 | G37: =G36+1 -> 31 | H37: 372100 | I37: =I36+1 -> 33 | J37: 391300 | K37: =K36+1 -> 30 | L37: 430900 | M37: =M36+1 -> 26 | N37: 459500 | O37: =O36+1 -> 24 | P37: 496600 | Q37: =Q36+1 -> 21 | S37: 入力シートの５の号俸欄に入力
B38: 特(4) | D38: 247000 | E38: =E37+1 -> 27 | F38: 308100 | G38: =G37+1 -> 32 | H38: 374300 | I38: =I37+1 -> 34 | J38: 393900 | K38: =K37+1 -> 31 | L38: 434300 | M38: =M37+1 -> 27 | N38: 463100 | O38: =O37+1 -> 25 | P38: 500700 | Q38: =Q37+1 -> 22 | S38: してください。
B39: 特(5) | D39: 248700 | E39: =E38+1 -> 28 | F39: 309800 | G39: =G38+1 -> 33 | H39: 376500 | I39: =I38+1 -> 35 | J39: 396500 | K39: =K38+1 -> 32 | L39: 437700 | M39: =M38+1 -> 28 | N39: 466700 | O39: =O38+1 -> 26 | P39: 504800 | Q39: =Q38+1 -> 23
B42: 研 究 職 給 料 表 | N42: 例
C45: 職務 | D45: １ 級 | F45: ２ 級 | H45: ３ 級 | J45: ４ 級 | L45: ５ 級
C46: の級
B47: 特 に | D47: 読 替 号 俸
E48: 号俸 | G48: 号俸 | I48: 号俸 | K48: 号俸 | M48: 号俸
B49: 特(1) | D49: 307000 | E49: 33 | F49: 371000 | G49: 30 | H49: 439200 | I49: 26 | J49: 488200 | K49: 24 | L49: 578800 | M49: 24 | O49: ①まず、H19.4.1以前の給与の最終発令を確認します。
B50: 特(2) | D50: 308900 | E50: =E49+1 -> 34 | F50: 373700 | G50: =G49+1 -> 31 | H50: 442500 | I50: =I49+1 -> 27 | J50: 492000 | K50: =K49+1 -> 25 | L50: 582800 | M50: =M49+1 -> 25 | O50: ②もし特に級が発令されていた場合は、
B51: 特(3) | D51: 310800 | E51: =E50+1 -> 35 | F51: 376400 | G51: =G50+1 -> 32 | H51: 445800 | I51: =I50+1 -> 28 | J51: 495800 | K51: =K50+1 -> 26 | L51: 586800 | M51: =M50+1 -> 26 | O51: 給料表と金額をたよりに読替号俸を探してください。
B52: 特(4) | D52: 312700 | E52: =E51+1 -> 36 | F52: 379100 | G52: =G51+1 -> 33 | H52: 449100 | I52: =I51+1 -> 29 | J52: 499600 | K52: =K51+1 -> 27 | L52: 590800 | M52: =M51+1 -> 27
B53: 特(5) | D53: 314600 | E53: =E52+1 -> 37 | F53: 381800 | G53: =G52+1 -> 34 | H53: 452400 | I53: =I52+1 -> 30 | J53: 503400 | K53: =K52+1 -> 28 | L53: 594800 | M53: =M52+1 -> 28
B56: 技 能 職 等 給 料 表
C59: 職務 | D59: １ 級 | F59: ２ 級 | H59: ３ 級 | J59: ４ 級 | L59: ５ 級
C60: の級
B61: 特 に | D61: 読 替 号 俸 | O61: ③例の場合は、教育職給料表（二）の
E62: 号俸 | G62: 号俸 | I62: 号俸 | K62: 号俸 | M62: 号俸 | O62: ２級と、金額467,300円の交差するところをみます。
B63: 特(1) | D63: 308000 | E63: 45 | F63: 317400 | G63: 34 | H63: 364700 | I63: 32 | J63: 382200 | K63: 29 | L63: 417900 | M63: 27 | O63: 交点の「３８号俸」がこの方の読替号俸となります。
B64: 特(2) | D64: 309800 | E64: =E63+1 -> 46 | F64: 319200 | G64: =G63+1 -> 35 | H64: 366900 | I64: =I63+1 -> 33 | J64: 384800 | K64: =K63+1 -> 30 | L64: 421300 | M64: =M63+1 -> 28
B65: 特(3) | D65: 311600 | E65: =E64+1 -> 47 | F65: 321000 | G65: =G64+1 -> 36 | H65: 369100 | I65: =I64+1 -> 34 | J65: 387400 | K65: =K64+1 -> 31 | L65: 424700 | M65: =M64+1 -> 29 | O65: 入力シートの５、H19.3.31現在の号俸欄に「２級３８号俸」と入力
B66: 特(4) | D66: 313400 | E66: =E65+1 -> 48 | F66: 322800 | G66: =G65+1 -> 37 | H66: 371300 | I66: =I65+1 -> 35 | J66: 390000 | K66: =K65+1 -> 32 | L66: 428100 | M66: =M65+1 -> 30 | O66: してください。467,300円と表示されるはずです。
B67: 特(5) | D67: 315200 | E67: =E66+1 -> 49 | F67: 324600 | G67: =G66+1 -> 38 | H67: 373500 | I67: =I66+1 -> 36 | J67: 392600 | K67: =K66+1 -> 33 | L67: 431500 | M67: =M66+1 -> 31

Sheet H193.31勤続期間 (hidden)
B3: 採用年月日 | P3: =IF(入力シート!P26="","",入力シート!P26) -> 1989-04-01 | AJ3: 2007-03-31 | AX3: =IFERROR(ROUNDDOWN(BP3/12,0),"") -> 18 | BB3: 年 | BF3: =IFERROR(MOD(BP3,12),"") -> 0 | BJ3: 月 | BN3: a | BP3: =IFERROR(DATEDIF(P3,AJ3,"M")+1,"") -> 216
AJ4: までの勤続期間
F6: 事由 | P6: 子の誕生日 | AD6: 期間
B7: 1 | F7: =IF(入力シート!F33="","",入力シート!F33) -> 育休 | P7: =IF(入力シート!P33="","",入力シート!P33) -> 1992-12-25 | AD7: =IF(入力シート!AD33>=$AJ$3,"",入力シート!AD33) -> 1993-02-19 | AR7: から | AV7: =IF(入力シート!AV33<='H193.31勤続期間'!$AJ$3,入力シート!AV33,IF(AND(入力シート!AV33>'H193.31勤続期間'!$AJ$3,'H193.31勤続期間'!AD7>1),'H193.31勤続期間'!$AJ$3,"")) -> 1993-12-31 | BJ7: まで
P9: 子が１歳に達する日 | BL9: 月数 | BN9: 割合
F10: =EOMONTH(P10,-1) -> 1993-11-30 | P10: =IF(F7="育休",P7+364,"") -> 1993-12-24 | AA10: ① | AD10: =IF(AD7="","",IF(DAY(AD7)=1,AD7,IF(DAY(AD7)<>1,EOMONTH(AD7,0)+1,""))) -> 1993-03-01 | AV10: =IF(AV7>P10,EOMONTH(F10,1),IF(AV7="","",IF(EOMONTH(AV7,0)<>AV7,EOMONTH(AV7,-1),IF(AV7=EOMONTH(AV7,0),AV7,"")))) -> 1993-12-31 | BJ10: =IFERROR(DATEDIF(AD10,AV10,"M")+1,"") -> 10 | BN10: =IFERROR(VLOOKUP(F7,除算!$B$3:$C$11,2,FALSE),"") -> 3 | BR10: =IFERROR(ROUNDDOWN(BJ10/BN10,1),"") -> 3.3 | BV10: =IFERROR(BR10+BR11,"") -> 3.3
AA11: ② | AD11: =IF(AV10<>AV7,AV10+1,"") ->  | AV11: =IF(AV7="","",IF(EOMONTH(AV7,0)<>AV7,EOMONTH(AV7,-1),IF(AV7=EOMONTH(AV7,0),AV7,""))) -> 1993-12-31 | BJ11: =IFERROR(DATEDIF(AD11,AV11,"M")+1,"") ->  | BN11: =IF(BJ11="","",VLOOKUP(F7,除算!$F$3:$G$11,2,FALSE)) ->  | BR11: =IF(BJ11="",0,(ROUNDDOWN(BJ11/BN11,1))) -> 0
AH13: 除算① | AR13: =IFERROR(ROUNDDOWN(BV10/12,0),0) -> 0 | AV13: 年 | AZ13: =IFERROR(MOD(BV10,12),0) -> 3.3 | BD13: 月除算
F16: 事由 | P16: 子の誕生日 | AD16: 期間
B17: 2 | F17: =IF(入力シート!F43="","",入力シート!F43) -> 育休 | P17: =IF(入力シート!P43="","",入力シート!P43) -> 1992-12-25 | AD17: =IF(入力シート!AD43>=$AJ$3,"",入力シート!AD43) -> 1994-01-01 | AR17: から | AV17: =IF(入力シート!AV43<='H193.31勤続期間'!$AJ$3,入力シート!AV43,IF(AND(入力シート!AV43>'H193.31勤続期間'!$AJ$3,'H193.31勤続期間'!AD17>1),'H193.31勤続期間'!$AJ$3,"")) -> 1994-03-31 | BJ17: まで
P19: 子が１歳になる日 | BL19: 月数 | BN19: 割合
F20: =EOMONTH(P20,-1) -> 1993-11-30 | P20: =IF(F17="育休",P17+364,"") -> 1993-12-24 | AA20: ① | AD20: =IF(AD17="","",IF(DAY(AD17)=1,AD17,IF(DAY(AD17)<>1,EOMONTH(AD17,0)+1,""))) -> 1994-01-01 | AV20: =IF(AV17>P20,EOMONTH(F20,1),IF(AV17="","",IF(EOMONTH(AV17,0)<>AV17,EOMONTH(AV17,-1),IF(AV17=EOMONTH(AV17,0),AV17,"")))) -> 1993-12-31 | BJ20: =IFERROR(DATEDIF(AD20,AV20,"M")+1,"") ->  | BN20: =IFERROR(VLOOKUP(F17,除算!$B$3:$C$11,2,FALSE),"") -> 3 | BR20: =IFERROR(ROUNDDOWN(BJ20/BN20,1),"") ->  | BV20: =IFERROR(BR20+BR21,"") -> 
AA21: ② | AD21: =IF(AV20<>AV17,AV20+1,"") -> 1994-01-01 | AV21: =IF(AV17="","",IF(EOMONTH(AV17,0)<>AV17,EOMONTH(AV17,-1),IF(AV17=EOMONTH(AV17,0),AV17,""))) -> 1994-03-31 | BJ21: =IFERROR(DATEDIF(AD21,AV21,"M")+1,"") -> 3 | BN21: =IF(BJ21="","",VLOOKUP(F17,除算!$F$3:$G$11,2,FALSE)) -> 2 | BR21: =IF(BJ21="",0,(ROUNDDOWN(BJ21/BN21,1))) -> 1.5
AH23: 除算② | AR23: =IFERROR(ROUNDDOWN(BV20/12,0),0) -> 0 | AV23: 年 | AZ23: =IFERROR(MOD(BV20,12),0) -> 0 | BD23: 月除算
F26: 事由 | P26: 子の誕生日 | AD26: 期間
B27: 3 | F27: =IF(入力シート!F53="","",入力シート!F53) -> 休職 | P27: =IF(入力シート!P53="","",入力シート!P53) ->  | AD27: =IF(入力シート!AD53>=$AJ$3,"",入力シート!AD53) ->  | AR27: から | AV27: =IF(入力シート!AV53<='H193.31勤続期間'!$AJ$3,入力シート!AV53,IF(AND(入力シート!AV53>'H193.31勤続期間'!$AJ$3,'H193.31勤続期間'!AD27>1),'H193.31勤続期間'!$AJ$3,"")) -> 2007-03-31 | BJ27: まで
P29: 子が１歳になる日 | BL29: 月数 | BN29: 割合
F30: =EOMONTH(P30,-1) ->  | P30: =IF(F27="育休",P27+364,"") ->  | AA30: ① | AD30: =IF(AD27="","",IF(DAY(AD27)=1,AD27,IF(DAY(AD27)<>1,EOMONTH(AD27,0)+1,""))) ->  | AV30: =IF(AV27>P30,EOMONTH(F30,1),IF(AV27="","",IF(EOMONTH(AV27,0)<>AV27,EOMONTH(AV27,-1),IF(AV27=EOMONTH(AV27,0),AV27,"")))) -> 2007-03-31 | BJ30: =IFERROR(DATEDIF(AD30,AV30,"M")+1,"") ->  | BN30: =IFERROR(VLOOKUP(F27,除算!$B$3:$C$11,2,FALSE),"") -> 2 | BR30: =IFERROR(ROUNDDOWN(BJ30/BN30,1),"") ->  | BV30: =IFERROR(BR30+BR31,"") -> 
AA31: ② | AD31: =IF(AV30<>AV27,AV30+1,"") ->  | AV31: =IF(AV27="","",IF(EOMONTH(AV27,0)<>AV27,EOMONTH(AV27,-1),IF(AV27=EOMONTH(AV27,0),AV27,""))) -> 2007-03-31 | BJ31: =IFERROR(DATEDIF(AD31,AV31,"M")+1,"") ->  | BN31: =IF(BJ31="","",VLOOKUP(F27,除算!$F$3:$G$11,2,FALSE)) ->  | BR31: =IF(BJ31="",0,(ROUNDDOWN(BJ31/BN31,1))) -> 0
AH33: 除算③ | AR33: =IFERROR(ROUNDDOWN(BV30/12,0),0) -> 0 | AV33: 年 | AZ33: =IFERROR(MOD(BV30,12),0) -> 0 | BD33: 月除算
F36: 事由 | P36: 子の誕生日 | AD36: 期間
B37: 4 | F37: =IF(入力シート!F63="","",入力シート!F63) ->  | P37: =IF(入力シート!P63="","",入力シート!P63) ->  | AD37: =IF(入力シート!AD63>=$AJ$3,"",入力シート!AD63) -> 00:00:00 | AR37: から | AV37: =IF(入力シート!AV63<='H193.31勤続期間'!$AJ$3,入力シート!AV63,IF(AND(入力シート!AV63>'H193.31勤続期間'!$AJ$3,'H193.31勤続期間'!AD37>1),'H193.31勤続期間'!$AJ$3,"")) -> 00:00:00 | BJ37: まで
P39: 子が１歳になる日 | BL39: 月数 | BN39: 割合
F40: =EOMONTH(P40,-1) ->  | P40: =IF(F37="育休",P37+364,"") ->  | AA40: ① | AD40: =IF(AD37="","",IF(DAY(AD37)=1,AD37,IF(DAY(AD37)<>1,EOMONTH(AD37,0)+1,""))) -> 1900-02-01 | AV40: =IF(AV37>P40,EOMONTH(F40,11),IF(AV37="","",IF(EOMONTH(AV37,0)<>AV37,EOMONTH(AV37,-1),IF(AV37=EOMONTH(AV37,0),AV37,"")))) ->  | BJ40: =IFERROR(DATEDIF(AD40,AV40,"M")+1,"") ->  | BN40: =IFERROR(VLOOKUP(F37,除算!$B$3:$C$11,2,FALSE),"") ->  | BR40: =IFERROR(ROUNDDOWN(BJ40/BN40,1),"") ->  | BV40: =IFERROR(BR40+BR41,"") -> 
AA41: ② | AD41: =IF(AV40<>AV37,AV40+1,"") ->  | AV41: =IF(AV37="","",IF(EOMONTH(AV37,0)<>AV37,EOMONTH(AV37,-1),IF(AV37=EOMONTH(AV37,0),AV37,""))) ->  | BJ41: =IFERROR(DATEDIF(AD41,AV41,"M")+1,"") ->  | BN41: =IF(BJ41="","",VLOOKUP(F37,除算!$F$3:$G$11,2,FALSE)) ->  | BR41: =IF(BJ41="",0,(ROUNDDOWN(BJ41/BN41,1))) -> 0
BO42: ｂ | BR42: =IFERROR(BO43*12+BS43,0) -> 3.3
AH43: 除算④ | AR43: =IFERROR(ROUNDDOWN(BV40/12,0),0) -> 0 | AV43: 年 | AZ43: =IFERROR(MOD(BV40,12),0) -> 0 | BD43: 月除算 | BO43: =IFERROR(AR43+AR33+AR23+AR13,"") -> 0 | BR43: 年 | BS43: =IFERROR(AZ43+AZ33+AZ23+AZ13,"") -> 3.3 | BV43: 月
AF46: 勤続年数は | AW46: =IFERROR(ROUNDDOWN(BO47/12,0),"0") -> 17 | BJ46: 年 | BO46: a-b
BO47: =IFERROR(BP3-BR42,"") -> 212.7

Sheet 給料表 (hidden)
A1: 2022-04-01 | B1: 表級号 | C1: 金額 | E1: 2007-03-31 | F1: 表級号 | G1: 金額 | H1: 加算額 | I1: 給料月額
A2: 給料表 | B2: 101001 | C2: 150800 | E2: 給料表 | F2: 101002 | G2: 133700 | I2: 133700
B3: 101002 | C3: 151900 | F3: 101003 | G3: 138100 | I3: 138100
B4: 101003 | C4: 153100 | F4: 101004 | G4: 142500 | I4: 142500
B5: 101004 | C5: 154200 | F5: 101005 | G5: 147700 | I5: 147700
B6: 101005 | C6: 155300 | F6: 101006 | G6: 153500 | I6: 153500
B7: 101006 | C7: 156500 | F7: 101007 | G7: 159400 | I7: 159400
B8: 101007 | C8: 157600 | F8: 101008 | G8: 165700 | I8: 165700
B9: 101008 | C9: 158600 | F9: 101009 | G9: 170300 | I9: 170300
B10: 101009 | C10: 159600 | F10: 101010 | G10: 173700 | I10: 173700
B11: 101010 | C11: 161000 | F11: 101011 | G11: 176600 | I11: 176600
B12: 101011 | C12: 162300 | F12: 101012 | G12: 179300 | I12: 179300
B13: 101012 | C13: 163600 | F13: 101013 | G13: 181800 | I13: 181800
B14: 101013 | C14: 164900 | F14: 101014 | G14: 183800 | I14: 183800
B15: 101014 | C15: 166400 | F15: 101015 | G15: 185800 | I15: 185800
B16: 101015 | C16: 167900 | F16: 101016 | G16: 187400 | I16: 187400
B17: 101016 | C17: 169500 | F17: 101017 | G17: 189000 | I17: 189000
B18: 101017 | C18: 170600 | F18: 101018 | G18: 190600 | I18: 190600
B19: 101018 | C19: 172000 | F19: 101019 | G19: 192200 | I19: 192200
B20: 101019 | C20: 173400 | F20: 101020 | G20: 193800 | I20: 193800
B21: 101020 | C21: 174800 | F21: 101021 | G21: 195400 | I21: 195400
B22: 101021 | C22: 176100 | F22: 102002 | G22: 169900 | I22: 169900
B23: 101022 | C23: 178700 | F23: 102003 | G23: 176400 | I23: 176400
B24: 101023 | C24: 181200 | F24: 102004 | G24: 183400 | I24: 183400
B25: 101024 | C25: 183700 | F25: 102005 | G25: 189200 | I25: 189200
B26: 101025 | C26: 186000 | F26: 102006 | G26: 194500 | I26: 194500
B27: 101026 | C27: 187700 | F27: 102007 | G27: 199600 | I27: 199600
B28: 101027 | C28: 189300 | F28: 102008 | G28: 204700 | I28: 204700
B29: 101028 | C29: 191000 | F29: 102009 | G29: 209600 | I29: 209600
B30: 101029 | C30: 192500 | F30: 102010 | G30: 214000 | I30: 214000
B31: 101030 | C31: 194300 | F31: 102011 | G31: 218400 | I31: 218400
B32: 101031 | C32: 196100 | F32: 102012 | G32: 222600 | I32: 222600
B33: 101032 | C33: 197900 | F33: 102013 | G33: 226800 | I33: 226800
B34: 101033 | C34: 199500 | F34: 102014 | G34: 230000 | I34: 230000
B35: 101034 | C35: 200900 | F35: 102015 | G35: 232900 | I35: 232900
B36: 101035 | C36: 202400 | F36: 102016 | G36: 236000 | I36: 236000
B37: 101036 | C37: 203900 | F37: 102017 | G37: 238900 | I37: 238900
B38: 101037 | C38: 205200 | F38: 102018 | G38: 241800 | I38: 241800
B39: 101038 | C39: 206500 | F39: 102019 | G39: 243600 | I39: 243600
B40: 101039 | C40: 207700 | F40: 102020 | G40: 245400 | I40: 245400
B41: 101040 | C41: 209000 | F41: 102021 | G41: 247200 | I41: 247200
B42: 101041 | C42: 210300 | F42: 102022 | G42: 249000 | I42: 249000
B43: 101042 | C43: 211700 | F43: 102023 | G43: 250800 | I43: 250800
B44: 101043 | C44: 213000 | F44: 102024 | G44: 252600 | I44: 252600
B45: 101044 | C45: 214300 | F45: 103001 | G45: 183400 | I45: 183400
B46: 101045 | C46: 215400 | F46: 103002 | G46: 190400 | I46: 190400
B47: 101046 | C47: 216700 | F47: 103003 | G47: 197600 | I47: 197600
B48: 101047 | C48: 218000 | F48: 103004 | G48: 204600 | I48: 204600
B49: 101048 | C49: 219300 | F49: 103005 | G49: 212200 | I49: 212200
B50: 101049 | C50: 220200 | F50: 103006 | G50: 220000 | I50: 220000
B51: 101050 | C51: 221300 | F51: 103007 | G51: 227800 | I51: 227800
B52: 101051 | C52: 222300 | F52: 103008 | G52: 235200 | I52: 235200
B53: 101052 | C53: 223300 | F53: 103009 | G53: 241600 | I53: 241600
B54: 101053 | C54: 224300 | F54: 103010 | G54: 247900 | I54: 247900
B55: 101054 | C55: 225200 | F55: 103011 | G55: 254100 | I55: 254100
B56: 101055 | C56: 226100 | F56: 103012 | G56: 259600 | I56: 259600
B57: 101056 | C57: 227000 | F57: 103013 | G57: 265100 | I57: 265100
B58: 101057 | C58: 227300 | F58: 103014 | G58: 270100 | I58: 270100
B59: 101058 | C59: 228100 | F59: 103015 | G59: 275100 | I59: 275100
B60: 101059 | C60: 228800 | F60: 103016 | G60: 279600 | I60: 279600
B61: 101060 | C61: 229500 | F61: 103017 | G61: 283600 | I61: 283600
B62: 101061 | C62: 230200 | F62: 103018 | G62: 287300 | I62: 287300
B63: 101062 | C63: 231100 | F63: 103019 | G63: 290500 | I63: 290500
B64: 101063 | C64: 231800 | F64: 103020 | G64: 292800 | I64: 292800
B65: 101064 | C65: 232400 | F65: 103021 | G65: 294600 | I65: 294600
B66: 101065 | C66: 233000 | F66: 103022 | G66: 296600 | I66: 296600
B67: 101066 | C67: 233600 | F67: 103023 | G67: 298500 | I67: 298500
B68: 101067 | C68: 234200 | F68: 103024 | G68: 300500 | I68: 300500
B69: 101068 | C69: 234900 | F69: 103025 | G69: 302400 | I69: 302400
B70: 101069 | C70: 235600 | F70: 103026 | G70: 304200 | I70: 304200
B71: 101070 | C71: 236200 | F71: 103027 | G71: 306100 | I71: 306100
B72: 101071 | C72: 236800 | F72: 103028 | G72: 308100 | I72: 308100
B73: 101072 | C73: 237500 | F73: 103029 | G73: 310000 | I73: 310000
B74: 101073 | C74: 238200 | F74: 103030 | G74: 311900 | I74: 311900
B75: 101074 | C75: 238800 | F75: 103031 | G75: 313800 | I75: 313800
B76: 101075 | C76: 239400 | F76: 103032 | G76: 315600 | I76: 315600
B77: 101076 | C77: 239900 | F77: 103033 | G77: 317400 | I77: 317400
B78: 101077 | C78: 240500 | F78: 103034 | G78: 319200 | I78: 319200
B79: 101078 | C79: 241300 | F79: 103035 | G79: 321000 | I79: 321000
B80: 101079 | C80: 242100 | F80: 103036 | G80: 322800 | I80: 322800
B81: 101080 | C81: 242800 | F81: 103037 | G81: 324600 | I81: 324600
B82: 101081 | C82: 243300 | F82: 104001 | G82: 217100 | I82: 217100
B83: 101082 | C83: 243500 | F83: 104002 | G83: 225000 | I83: 225000
B84: 101083 | C84: 244100 | F84: 104003 | G84: 233400 | I84: 233400
B85: 101084 | C85: 244700 | F85: 104004 | G85: 242300 | I85: 242300
B86: 101085 | C86: 245200 | F86: 104005 | G86: 251200 | I86: 251200
B87: 101086 | C87: 245900 | F87: 104006 | G87: 259600 | I87: 259600
B88: 101087 | C88: 246600 | F88: 104007 | G88: 268000 | I88: 268000
B89: 101088 | C89: 247300 | F89: 104008 | G89: 276200 | I89: 276200
B90: 101089 | C90: 247800 | F90: 104009 | G90: 284300 | I90: 284300
B91: 101090 | C91: 248300 | F91: 104010 | G91: 292100 | I91: 292100
B92: 101091 | C92: 248600 | F92: 104011 | G92: 299800 | I92: 299800
B93: 101092 | C93: 249000 | F93: 104012 | G93: 307100 | I93: 307100
B94: 101093 | C94: 249400 | F94: 104013 | G94: 314000 | I94: 314000
B95: 102001 | C95: 199500 | F95: 104014 | G95: 320800 | I95: 320800
B96: 102002 | C96: 201300 | F96: 104015 | G96: 326700 | I96: 326700
B97: 102003 | C97: 203100 | F97: 104016 | G97: 332300 | I97: 332300
B98: 102004 | C98: 204900 | F98: 104017 | G98: 335900 | I98: 335900
B99: 102005 | C99: 206400 | F99: 104018 | G99: 339200 | I99: 339200
B100: 102006 | C100: 208200 | F100: 104019 | G100: 342200 | I100: 342200
B101: 102007 | C101: 210000 | F101: 104020 | G101: 344500 | I101: 344500
B102: 102008 | C102: 211900 | F102: 104021 | G102: 346700 | I102: 346700
B103: 102009 | C103: 213500 | F103: 104022 | G103: 349000 | I103: 349000
B104: 102010 | C104: 215300 | F104: 104023 | G104: 351200 | I104: 351200
B105: 102011 | C105: 217100 | F105: 104024 | G105: 353400 | I105: 353400
B106: 102012 | C106: 218900 | F106: 104025 | G106: 355800 | I106: 355800
B107: 102013 | C107: 220200 | F107: 104026 | G107: 358000 | I107: 358000
B108: 102014 | C108: 222000 | F108: 104027 | G108: 360300 | I108: 360300
B109: 102015 | C109: 223700 | F109: 104028 | G109: 362500 | I109: 362500
B110: 102016 | C110: 225600 | F110: 104029 | G110: 364700 | I110: 364700
B111: 102017 | C111: 227200 | F111: 104030 | G111: 366900 | I111: 366900
B112: 102018 | C112: 228900 | F112: 104031 | G112: 369100 | I112: 369100
B113: 102019 | C113: 230500 | F113: 104032 | G113: 371300 | I113: 371300
B114: 102020 | C114: 232000 | F114: 104033 | G114: 373500 | I114: 373500
B115: 102021 | C115: 233400 | F115: 105001 | G115: 234500 | I115: 234500
B116: 102022 | C116: 234900 | F116: 105002 | G116: 243400 | I116: 243400
B117: 102023 | C117: 236500 | F117: 105003 | G117: 252400 | I117: 252400
B118: 102024 | C118: 238000 | F118: 105004 | G118: 261000 | I118: 261000
B119: 102025 | C119: 239100 | F119: 105005 | G119: 269500 | I119: 269500
B120: 102026 | C120: 240600 | F120: 105006 | G120: 278000 | I120: 278000
B121: 102027 | C121: 241900 | F121: 105007 | G121: 286500 | I121: 286500
B122: 102028 | C122: 243100 | F122: 105008 | G122: 294900 | I122: 294900
B123: 102029 | C123: 244300 | F123: 105009 | G123: 303300 | I123: 303300
B124: 102030 | C124: 245300 | F124: 105010 | G124: 311600 | I124: 311600
B125: 102031 | C125: 246300 | F125: 105011 | G125: 319500 | I125: 319500
B126: 102032 | C126: 247300 | F126: 105012 | G126: 326800 | I126: 326800
B127: 102033 | C127: 248400 | F127: 105013 | G127: 334200 | I127: 334200
B128: 102034 | C128: 249300 | F128: 105014 | G128: 341300 | I128: 341300
B129: 102035 | C129: 250200 | F129: 105015 | G129: 346800 | I129: 346800
B130: 102036 | C130: 251200 | F130: 105016 | G130: 351500 | I130: 351500
B131: 102037 | C131: 252100 | F131: 105017 | G131: 355500 | I131: 355500
B132: 102038 | C132: 253400 | F132: 105018 | G132: 358800 | I132: 358800
B133: 102039 | C133: 254600 | F133: 105019 | G133: 361600 | I133: 361600
B134: 102040 | C134: 256000 | F134: 105020 | G134: 364500 | I134: 364500
B135: 102041 | C135: 257300 | F135: 105021 | G135: 367000 | I135: 367000
B136: 102042 | C136: 258700 | F136: 105022 | G136: 369500 | I136: 369500
B137: 102043 | C137: 259900 | F137: 105023 | G137: 372000 | I137: 372000
B138: 102044 | C138: 261100 | F138: 105024 | G138: 374500 | I138: 374500
B139: 102045 | C139: 262200 | F139: 105025 | G139: 377000 | I139: 377000
B140: 102046 | C140: 263500 | F140: 105026 | G140: 379600 | I140: 379600
B141: 102047 | C141: 265000 | F141: 105027 | G141: 382200 | I141: 382200
B142: 102048 | C142: 266300 | F142: 105028 | G142: 384800 | I142: 384800
B143: 102049 | C143: 267400 | F143: 105029 | G143: 387400 | I143: 387400
B144: 102050 | C144: 267900 | F144: 105030 | G144: 390000 | I144: 390000
B145: 102051 | C145: 269100 | F145: 105031 | G145: 392600 | I145: 392600
B146: 102052 | C146: 270300 | F146: 106001 | G146: 255000 | I146: 255000
B147: 102053 | C147: 271300 | F147: 106002 | G147: 263800 | I147: 263800
B148: 102054 | C148: 272400 | F148: 106003 | G148: 272800 | I148: 272800
B149: 102055 | C149: 273700 | F149: 106004 | G149: 281800 | I149: 281800
B150: 102056 | C150: 275000 | F150: 106005 | G150: 290800 | I150: 290800
B151: 102057 | C151: 275900 | F151: 106006 | G151: 300000 | I151: 300000
B152: 102058 | C152: 276900 | F152: 106007 | G152: 309300 | I152: 309300
B153: 102059 | C153: 277900 | F153: 106008 | G153: 318500 | I153: 318500
B154: 102060 | C154: 279000 | F154: 106009 | G154: 327700 | I154: 327700
B155: 102061 | C155: 280100 | F155: 106010 | G155: 336900 | I155: 336900
B156: 102062 | C156: 281100 | F156: 106011 | G156: 346100 | I156: 346100
B157: 102063 | C157: 282000 | F157: 106012 | G157: 355300 | I157: 355300
B158: 102064 | C158: 283000 | F158: 106013 | G158: 364200 | I158: 364200
B159: 102065 | C159: 283500 | F159: 106014 | G159: 372800 | I159: 372800
B160: 102066 | C160: 284400 | F160: 106015 | G160: 380200 | I160: 380200
B161: 102067 | C161: 285100 | F161: 106016 | G161: 385700 | I161: 385700
B162: 102068 | C162: 286000 | F162: 106017 | G162: 390700 | I162: 390700
B163: 102069 | C163: 287000 | F163: 106018 | G163: 394100 | I163: 394100
B164: 102070 | C164: 287800 | F164: 106019 | G164: 397600 | I164: 397600
B165: 102071 | C165: 288600 | F165: 106020 | G165: 401000 | I165: 401000
B166: 102072 | C166: 289400 | F166: 106021 | G166: 404400 | I166: 404400
B167: 102073 | C167: 290200 | F167: 106022 | G167: 407700 | I167: 407700
B168: 102074 | C168: 290700 | F168: 106023 | G168: 411100 | I168: 411100
B169: 102075 | C169: 291100 | F169: 106024 | G169: 414500 | I169: 414500
B170: 102076 | C170: 291700 | F170: 106025 | G170: 417900 | I170: 417900
B171: 102077 | C171: 291800 | F171: 106026 | G171: 421300 | I171: 421300
B172: 102078 | C172: 292200 | F172: 106027 | G172: 424700 | I172: 424700
B173: 102079 | C173: 292400 | F173: 106028 | G173: 428100 | I173: 428100
B174: 102080 | C174: 292800 | F174: 106029 | G174: 431500 | I174: 431500
B175: 102081 | C175: 293000 | F175: 106030 | G175: 434900 | I175: 434900
B176: 102082 | C176: 293200 | F176: 106031 | G176: 438300 | I176: 438300
B177: 102083 | C177: 293600 | F177: 106032 | G177: 441700 | I177: 441700
B178: 102084 | C178: 293900 | F178: 106033 | G178: 445100 | I178: 445100
B179: 102085 | C179: 294200 | F179: 106034 | G179: 448500 | I179: 448500
B180: 102086 | C180: 294500 | F180: 106035 | G180: 451900 | I180: 451900
B181: 102087 | C181: 294800 | F181: 106036 | G181: 455300 | I181: 455300
B182: 102088 | C182: 295200 | F182: 106037 | G182: 458700 | I182: 458700
B183: 102089 | C183: 295500 | F183: 106038 | G183: 462100 | I183: 462100
B184: 102090 | C184: 295900 | F184: 106039 | G184: 465500 | I184: 465500
B185: 102091 | C185: 296200 | F185: 106040 | G185: 468900 | I185: 468900
B186: 102092 | C186: 296600 | F186: 106041 | G186: 472300 | I186: 472300
B187: 102093 | C187: 296700 | F187: 106042 | G187: 475700 | I187: 475700
B188: 102094 | C188: 296900 | F188: 107001 | G188: 274200 | I188: 274200
B189: 102095 | C189: 297300 | F189: 107002 | G189: 283300 | I189: 283300
B190: 102096 | C190: 297700 | F190: 107003 | G190: 292700 | I190: 292700
B191: 102097 | C191: 297900 | F191: 107004 | G191: 302500 | I191: 302500
B192: 102098 | C192: 298200 | F192: 107005 | G192: 312200 | I192: 312200
B193: 102099 | C193: 298600 | F193: 107006 | G193: 322000 | I193: 322000
B194: 102100 | C194: 299000 | F194: 107007 | G194: 331800 | I194: 331800
B195: 102101 | C195: 299200 | F195: 107008 | G195: 341400 | I195: 341400
B196: 102102 | C196: 299500 | F196: 107009 | G196: 350800 | I196: 350800
B197: 102103 | C197: 299900 | F197: 107010 | G197: 360000 | I197: 360000
B198: 102104 | C198: 300200 | F198: 107011 | G198: 369000 | I198: 369000
B199: 102105 | C199: 300400 | F199: 107012 | G199: 377500 | I199: 377500
B200: 102106 | C200: 300700 | F200: 107013 | G200: 385900 | I200: 385900
... 3350 more rows

Sheet 給料表計算シート (hidden)
A1: １ 現在の給料表 | I1: ２ H19の給料表
E3: 給料表 | F3: 調整額 | M3: 給料表 | N3: 調整額
A4: 行政 | B4: =IF(入力シート!$B$93="行政",入力シート!$B$93,"") ->  | C4: =IF(B4="","",入力シート!$U$93) ->  | D4: =IF(B4="","",入力シート!$AC$93) ->  | E4: =IF(B4="","",VLOOKUP($D$16,給料表!$B$2:$C$3550,2,0)) ->  | G4: =IF(B4="","",1) ->  | I4: 行政 | J4: =IF(入力シート!#REF!="行政",入力シート!#REF!,"") ->  | K4: =IF(J4="","",入力シート!#REF!) ->  | L4: =IF(J4="","",入力シート!#REF!) ->  | M4: =IF(O4="","",VLOOKUP($L$17,給料表!$F$2:$I$1134,4,0)) ->  | O4: =IF(J4="","",1) -> 
A5: 教育（一） | B5: =IF(入力シート!$B$93="教育（一）",入力シート!$B$93,"") -> 教育（一） | C5: =IF(B5="","",入力シート!$U$93) -> 2 | D5: =IF(B5="","",入力シート!$AC$93) -> 140 | E5: =IF(B5="","",VLOOKUP($D$16,給料表!$B$2:$C$3550,2,0)) -> 417900 | F5: =IF(C5=3,7700,IF(OR(C5=1,C5=2,C5=25),INT(E5/25),"")) -> 16716 | G5: =IF(B5="","",4) -> 4 | I5: 教育（二） | J5: =IF(入力シート!#REF!="教育（二）",入力シート!#REF!,"") ->  | K5: =IF(J5="","",入力シート!#REF!) ->  | L5: =IF(J5="","",入力シート!#REF!) ->  | M5: =IF(O5="","",VLOOKUP($L$17,給料表!$F$2:$I$1134,4,0)) ->  | N5: =IF(K5=3,7700,IF(OR(K5=1,K5=2),INT(M5/25),"")) ->  | O5: =IF(J5="","",4) -> 
A6: 教育（二） | B6: =IF(入力シート!$B$93="教育（二）",入力シート!$B$93,"") ->  | C6: =IF(B6="","",入力シート!$U$93) ->  | D6: =IF(B6="","",入力シート!$AC$93) ->  | E6: =IF(B6="","",VLOOKUP($D$16,給料表!$B$2:$C$3550,2,0)) ->  | F6: =IF(C6=3,7500,IF(OR(C6=1,C6=2,C6=25),INT(E6/25),"")) ->  | G6: =IF(B6="","",5) ->  | I6: 教育（三） | J6: =IF(入力シート!#REF!="教育（三）",入力シート!#REF!,"") ->  | K6: =IF(J6="","",入力シート!#REF!) ->  | L6: =IF(J6="","",入力シート!#REF!) ->  | M6: =IF(O6="","",VLOOKUP($L$17,給料表!$F$2:$I$1134,4,0)) ->  | N6: =IF(K6=3,7500,IF(OR(K6=1,K6=2),INT(M6/25),"")) ->  | O6: =IF(J6="","",5) -> 
A7: 研究 | B7: =IF(入力シート!$B$93="研究",入力シート!$B$93,"") ->  | C7: =IF(B7="","",入力シート!$U$93) ->  | D7: =IF(B7="","",入力シート!$AC$93) ->  | E7: =IF(B7="","",VLOOKUP($D$16,給料表!$B$2:$C$3550,2,0)) ->  | G7: =IF(B7="","",6) ->  | I7: 研究 | J7: =IF(入力シート!#REF!="研究",入力シート!#REF!,"") ->  | K7: =IF(J7="","",入力シート!#REF!) ->  | L7: =IF(J7="","",入力シート!#REF!) ->  | M7: =IF(O7="","",VLOOKUP($L$17,給料表!$F$2:$I$1134,4,0)) ->  | O7: =IF(J7="","",6) -> 
A8: 技能 | B8: =IF(入力シート!$B$93="技能",入力シート!$B$93,"") ->  | C8: =IF(B8="","",入力シート!$U$93) ->  | D8: =IF(B8="","",入力シート!$AC$93) ->  | E8: =IF(B8="","",VLOOKUP($D$16,給料表!$B$2:$C$3550,2,0)) ->  | G8: =IF(B8="","",10) ->  | I8: 技能 | J8: =IF(入力シート!#REF!="技能",入力シート!#REF!,"") ->  | K8: =IF(J8="","",入力シート!#REF!) ->  | L8: =IF(J8="","",入力シート!#REF!) ->  | M8: =IF(O8="","",VLOOKUP($L$17,給料表!$F$2:$I$1134,4,0)) ->  | O8: =IF(J8="","",10) -> 
A9: 医療（二） | B9: =IF(入力シート!$B$93="医療（二）",入力シート!$B$93,"") ->  | C9: =IF(B9="","",入力シート!$U$93) ->  | D9: =IF(B9="","",入力シート!$AC$93) ->  | E9: =IF(B9="","",VLOOKUP($D$16,給料表!$B$2:$C$3550,2,0)) ->  | G9: =IF(B9="","",8) ->  | I9: 医療（二） | J9: =IF(入力シート!#REF!="医療（二）",入力シート!#REF!,"") ->  | K9: =IF(J9="","",入力シート!#REF!) ->  | L9: =IF(J9="","",入力シート!#REF!) ->  | M9: =IF(O9="","",VLOOKUP($L$17,給料表!$F$2:$I$1134,4,0)) ->  | O9: =IF(J9="","",8) -> 
A10: 医療（三） | B10: =IF(入力シート!$B$93="医療（三）",入力シート!$B$93,"") ->  | C10: =IF(B10="","",入力シート!$U$93) ->  | D10: =IF(B10="","",入力シート!$AC$93) ->  | E10: =IF(B10="","",VLOOKUP($D$16,給料表!$B$2:$C$3550,2,0)) ->  | G10: =IF(B10="","",9) ->  | I10: 医療（三） | J10: =IF(入力シート!#REF!="医療（三）",入力シート!#REF!,"") ->  | K10: =IF(J10="","",入力シート!#REF!) ->  | L10: =IF(J10="","",入力シート!#REF!) ->  | M10: =IF(O10="","",VLOOKUP($L$17,給料表!$F$2:$I$1134,4,0)) ->  | O10: =IF(J10="","",9) -> 
C12: 給料月額 | E12: =MAX(E4:E10) -> 417900 | F12: =MAX(F4:F10) -> 16716 | K12: 給料月額 | M12: =MAX(M4:M10) ->  | N12: =MAX(N4:N10) -> 
B13: 給与表コード | C13: 級 | D13: 号俸
B14: =SUM(G4:G10) -> 4 | C14: =SUM(C4:C10) -> 2 | D14: =SUM(D4:D10) -> 140 | J14: 給与表コード | K14: 級 | L14: 号俸
J15: =SUM(O4:O10) ->  | K15: =SUM(K4:K10) ->  | L15: =SUM(L4:L10) -> 
B16: =TEXT(B14,"0")&TEXT(C14,"00")&TEXT(D14,"000") -> 402140 | D16: =B16*1 -> 402140
J17: =TEXT(J15,"0")&TEXT(K15,"00")&TEXT(L15,"000") ->  | L17: =J17*1 -> 
A19: 技能 | B19: =IF(OR(入力シート!U98="",入力シート!AC98=""),"","技能") ->  | C19: =IF(B19="","",入力シート!$U$98) ->  | D19: =IF(B19="","",入力シート!$AC$98) ->  | E19: =IF(B19="","",VLOOKUP($D$25,給料表!B:D,3,0)) ->  | G19: =IF(B19="","",10) -> 
C21: 給料月額 | E21: =IF(E19="","",E19) ->  | F21: =MAX(F19:F19) -> 0
B22: 給与表コード | C22: 級 | D22: 号俸
B23: =G19 ->  | C23: =SUM(C19:C19) -> 0 | D23: =SUM(D19:D19) -> 0
B25: =TEXT(B23,"0")&TEXT(C23,"00")&TEXT(D23,"000") -> 00000 | D25: =B25*1 -> 0

Sheet 計算シート (hidden)
A1: 条例改正に伴う退職手当額試算シート | K1: ver3.0
M2: 自己都合
A3: １．H３０.３.３１に退職した場合 | M3: 定年・勧奨
D5: 年齢(H30.3.31) | F5: ※１勤続年数 | H5: ※２給料月額(現在) | J5: ※２給料月額(H19.3.31) | M5: =MAX(H6:H9) -> 434616 | N5: =IF(入力シート!AT128=0,1251000,入力シート!AZ128) -> 1626000
D6: =入力シート!B21 -> 23103 | F6: =入力シート!AW80 -> 34 | H6: =入力シート!BG102 -> 434616 | J6: =IF(入力シート!#REF!="",0,入力シート!#REF!) ->  | L6: 新条例 | M6: =IF(F9=1,VLOOKUP($F$6,'H30.4.1'!A5:C50,3,FALSE),VLOOKUP($F$6,'H30.4.1'!A5:C50,2,FALSE)) -> 46.83015 | N6: =SUM(M5*M6)+N5 -> 21979132.47
M7: =MAX(J6:J9) -> 
D8: 退職区分 | H8: 退職手当上の給料月額 | J8: 退職手当上の給料月額 | L8: 旧条例 | M8: =IF(F6<=7,0,IF(F9=1,VLOOKUP('H193.31勤続期間'!AW46,'H19.3.31（H2７.3.31）'!A5:C50,3,FALSE),VLOOKUP('H193.31勤続期間'!AW46,'H19.3.31（H2７.3.31）'!A5:C50,2,FALSE))) -> 14.8149 | N8: =ROUNDDOWN(M7*M8,0) -> 
D9: =入力シート!B14 -> 定年 | F9: =IF(D9="自己都合",1,2) -> 2 | H9: =IF(AND($D$9="勧奨（定年）",F6>24),H6*VLOOKUP(D6,加算率!$B$4:$C$34,2,FALSE),H6) -> 434616 | J9: =IF(D6=60,J6,IF(AND($D$9="勧奨（定年）",D6-10>49,'H193.31勤続期間'!AW46>24),J6*VLOOKUP(D6-10,加算率!$B$4:$C$34,2,FALSE))) -> FALSE
D13: 給料月額 | F13: 支給割合 | H13: 調整額 | J13: 退職手当額
D14: =IF(N6>N8,M5,M7) ->  | E14: × | F14: =IF(N6>N8,M6,M8) ->  | G14: ＋ | H14: =IF(N8>N6,0,IF(入力シート!AT128=0,1251000,入力シート!AZ128)) ->  | I14: ＝ | J14: =INT(D14*F14)+H14 -> 
D16: ※１） 育児休業、休職等の期間を除いた年数
D18: １年未満の端数は切り捨て 例）３５年６月 →３５年 （私たちの福利厚生 ６７頁参照）
D20: ※２） 本俸 ＋教職調整額 ＋ 給料の調整額 （ 私たちの福利厚生 ６６頁参照）
D22: 本俸額は給料表上の月額（現給補償額を含まない額）
A27: １．H２７.３.３１に退職した場合
D29: 年齢(H26.3.31) | F29: 勤続年数 | H29: ※給料月額 | J29: ※２給料月額 | M29: =MAX(H30:H34) ->  | N29: =IF(入力シート!AZ138=0,1251000,入力シート!AZ138) -> 1626000
D30: =D6+1 -> 23104 | F30: =F6+1 -> 35 | H30: =H6 -> 434616 | J30: =J6 ->  | L30: 現条例 | M30: =IF(F34=1,VLOOKUP(F30,'H30.4.1'!A6:C73,3,FALSE),VLOOKUP(F30,'H30.4.1'!A6:C73,2,FALSE)) -> 47.709 | N30: =IFERROR(SUM(M29*M30)+N29,0) -> 0
D31: ＋１歳 | F31: ＋１年 | H31: 昇給は考慮しない | M31: =MAX(J30:J34) -> 
L32: 旧条例 | M32: =IF(F6<=8,0,IF(F34=1,VLOOKUP('H193.31勤続期間'!AW46,A6:C75,3,FALSE),VLOOKUP('H193.31勤続期間'!AW46,A6:C75,2,FALSE))) ->  | N32: =SUM(M31*M32) -> 
D33: 退職区分 | H33: 加算後の給料月額 | J33: 退職手当上の給料月額
D34: =IF(入力シート!B17="",入力シート!B14,入力シート!B17) -> 定年 | F34: =IF(D34="自己都合",1,2) -> 2 | H34: =IF(F30>24,H30*VLOOKUP(D30,加算率!$B$4:$C$34,2,FALSE)) ->  | J34: =IF(D30=60,J30,IF(F30-7>24,J30*VLOOKUP(D30-7,加算率!$B$4:$C$34,2,FALSE))) -> 
D37: 給料月額 | F37: 支給割合 | H37: 調整額 | J37: 退職手当額
D38: =IF(N30>N32,M29,M31) ->  | E38: × | F38: =IF(N30>N32,M30,M32) ->  | G38: ＋ | H38: =IF(N32>N30,0,IF(入力シート!AZ138=0,1251000,入力シート!AZ138)) ->  | I38: ＝ | J38: =IFERROR(INT(D38*F38)+H38,"") -> 
A42: ３．おおよその差額
H44: =J38-J14 ->  | I44: 円

Sheet Sheet2 (hidden)
A1: 次年度 調整額計算
B3: 前年度a
C4: 4号 | D4: ５号 | E4: ６号 | F4: 7号 | G4: 8号 | H4: 9号 | I4: 10号 | J4: 合計
C5: =入力シート!X124 -> 0 | D5: =入力シート!AD124 -> 0 | E5: =入力シート!AJ124 -> 0 | F5: =入力シート!AP124 -> 0 | G5: =入力シート!AV124 -> 60 | H5: =入力シート!BB124 -> 0 | I5: =入力シート!BH124 -> 0 | J5: =SUM(C5:I5) -> 60 | K5: =IF(J5<60,J5+12,J5) -> 60
B6: a＋12 | C6: =IF(C5>0,C5+12,C5) -> 0 | D6: =IF(D5>0,D5+12,D5) -> 0 | E6: =IF(AND(D5=0,E5>0),E5+12,E5) -> 0 | F6: =IF(AND(E5=0,F5>0),F5+12,F5) -> 0 | G6: =IF(AND(F5=0,G5>0),G5+12,G5) -> 72 | H6: =IF(AND(G5=0,H5>0),H5+12,H5) -> 0 | I6: =IF(AND(H5=0,I5>0),I5+12,I5) -> 0
C7: =IF(C6>60,60,C6) -> 0 | D7: 0 | E7: 0 | F7: 0 | G7: 60 | H7: 0 | I7: 0
B8: a-12 | C8: =C5-12 -> -12 | D8: -12 | E8: -12 | F8: -12 | G8: 48 | H8: -12 | I8: -12
C9: 1 | D9: 2 | E9: 3 | F9: 4 | G9: 5 | H9: 6 | I9: 7
B10: 1 | C10: =$C$7 -> 0 | D10: =IF(AND(C5=0),$D$7,D5) -> 0 | E10: =IF(AND(C5=0,D5=0),$E$7,E5) -> 0 | F10: =IF(AND(C5=0,D5=0,E5=0),$F$7,F5) -> 0 | G10: =IF(AND(D5=0,E5=0,F5=0,C5=0),$G$7,G5) -> 60 | H10: =IF(AND(C5=0,E5=0,F5=0,G5=0,D5=0),$H$7,H5) -> 0 | I10: =IF(I$8<0,I$6-I$6,I$6-12) -> 0 | J10: =SUM(C10:I10) -> 60 | K10: 1
B11: 2 | C11: 0 | D11: =D10 -> 0 | E11: =E10 -> 0 | F11: =F10 -> 0 | G11: =$G$7 -> 60 | H11: =IF(H$8<0,0,H$5-12) -> 0 | I11: 0 | J11: 60 | K11: 2
B12: 3 | C12: 0 | D12: =D11 -> 0 | E12: =E10 -> 0 | F12: =F10 -> 0 | G12: =IF(G$8<0,0,IF(OR(H5>0,I5>0,J5>0),60-D5-E5-F5-C5,G6)) -> 60 | H12: 0 | I12: 0 | J12: 60 | K12: 3
B13: 4 | C13: 0 | D13: =D12 -> 0 | E13: =E10 -> 0 | F13: =IF(F$8<0,0,IF(OR(G5>0,H5>0,I5>0),60-C6-D6-E6,F8)) -> 0 | G13: 0 | H13: 0 | I13: 0 | J13: 0 | K13: 4
B14: 5 | C14: 0 | D14: =D13 -> 0 | E14: =IF(E$8<0,0,IF(OR(F5>0,G5>0,H5>0,I4>0),60-C6-D6,E8)) -> 0 | F14: 0 | G14: 0 | H14: 0 | I14: 0 | J14: 0 | K14: 5
B15: 6 | C15: 0 | D15: =IF(D$6<0,0,IF(OR(E5>0,F5>0,G4>0,H5>0),60-C6,D8)) -> 60 | E15: 0 | F15: 0 | G15: 0 | H15: 0 | I15: 0 | J15: 60 | K15: 6
B16: 7 | C16: =IF(C$8<0,C$6-C$6,C$6-12) -> 0 | D16: 0 | E16: 0 | F16: 0 | G16: 0 | H16: 0 | I16: 0 | J16: 0 | K16: 7
C18: =MATCH(K5,J10:J16,0) -> 1
B19: 次年度の調整月額
C20: 4号 | D20: ５号 | E20: ６号 | F20: 7号 | G20: 8号 | H20: 9号 | I20: 10号
C21: =IFERROR(VLOOKUP($C$18,$B$10:$I$16,2,FALSE),0) -> 0 | D21: =IFERROR(VLOOKUP($C$18,$B$10:$I$16,3,FALSE),0) -> 0 | E21: =IFERROR(VLOOKUP($C$18,$B$10:$I$16,4,FALSE),0) -> 0 | F21: =IFERROR(VLOOKUP($C$18,$B$10:$I$16,5,FALSE),0) -> 0 | G21: =IFERROR(VLOOKUP($C$18,$B$10:$I$16,6,FALSE),0) -> 60 | H21: =IFERROR(VLOOKUP($C$18,$B$10:$I$16,7,FALSE),0) -> 0 | I21: =IFERROR(VLOOKUP($C$18,$B$10:$I$16,8,FALSE),0) -> 0

Sheet 除算 (hidden)
B1: 除算１ | F1: 除算２
B3: 休職 | C3: 2 | F3: 休職 | G3: 2
B4: 停職 | C4: 2 | F4: 停職 | G4: 2
B5: 大学院修学 | C5: 2 | F5: 大学院修学 | G5: 2
B6: 育休 | C6: 3 | F6: 育休 | G6: 2
B7: 育短勤務 | C7: 3 | F7: 育短勤務 | G7: 3
B8: 高齢者部分休業 | C8: 2 | F8: 高齢者部分休業 | G8: 2
B9: 組合専従 | C9: 1 | F9: 組合専従 | G9: 1
B10: 自己啓発 | C10: 1 | F10: 自己啓発 | G10: 1
B11: 配偶者同行休業 | C11: 1 | F11: 配偶者同行休業 | G11: 1

Sheet 加算率 (hidden)
B4: 30 | C4: 1
B5: 31 | C5: 1
B6: 32 | C6: 1
B7: 33 | C7: 1
B8: 34 | C8: 1
B9: 35 | C9: 1
B10: 36 | C10: 1
B11: 37 | C11: 1
B12: 38 | C12: 1
B13: 39 | C13: 1
B14: 40 | C14: 1
B15: 41 | C15: 1
B16: 42 | C16: 1
B17: 43 | C17: 1
B18: 44 | C18: 1
B19: 45 | C19: 1
B20: 46 | C20: 1
B21: 47 | C21: 1
B22: 48 | C22: 1
B23: 49 | C23: 1
B24: 50 | C24: 1.2
B25: 51 | C25: 1.18
B26: 52 | C26: 1.16
B27: 53 | C27: 1.14
B28: 54 | C28: 1.12
B29: 55 | C29: 1.1
B30: 56 | C30: 1.08
B31: 57 | C31: 1.06
B32: 58 | C32: 1.04
B33: 59 | C33: 1.02
B34: 60 | C34: 1

Sheet H30.4.1 (hidden)
F1: 新支給率
D2: 新
B3: 勧奨 | C3: 自己都合 | G3: 1985-03-31 | H3: =DATEVALUE(G3) -> 
A4: 年 数
A5: 0 | C5: 0
A6: 1 | B6: 0.837 | C6: 0.5022
A7: 2 | B7: 1.674 | C7: 1.0044
A8: 3 | B8: 2.511 | C8: 1.5066
A9: 4 | B9: 3.348 | C9: 2.0088
A10: 5 | B10: 4.185 | C10: 2.511
A11: 6 | B11: 5.022 | C11: 3.0132
A12: 7 | B12: 5.859 | C12: 3.5154
A13: 8 | B13: 6.696 | C13: 4.0176
A14: 9 | B14: 7.533 | C14: 4.5198
A15: 10 | B15: 8.37 | C15: 5.022
A16: 11 | B16: 11.613375 | C16: 7.43256
A17: 12 | B17: 12.76425 | C17: 8.16912
A18: 13 | B18: 13.915125 | C18: 8.90568
A19: 14 | B19: 15.066 | C19: 9.64224
A20: 15 | B20: 16.216875 | C20: 10.3788
A21: 16 | B21: 17.890875 | C21: 12.88143
A22: 17 | B22: 19.564875 | C22: 14.08671
A23: 18 | B23: 21.238875 | C23: 15.29199
A24: 19 | B24: 22.912875 | C24: 16.49727
A25: 20 | B25: 24.586875 | C25: 19.6695
A26: 21 | B26: 26.260875 | C26: 21.3435
A27: 22 | B27: 27.934875 | C27: 23.0175
A28: 23 | B28: 29.608875 | C28: 24.6915
A29: 24 | B29: 31.282875 | C29: 26.3655
A30: 25 | B30: 33.27075 | C30: 28.0395
A31: 26 | B31: 34.77735 | C31: 29.3787
A32: 27 | B32: 36.28395 | C32: 30.7179
A33: 28 | B33: 37.79055 | C33: 32.0571
A34: 29 | B34: 39.29715 | C34: 33.3963
A35: 30 | B35: 40.80375 | C35: 34.7355
A36: 31 | B36: 42.31035 | C36: 35.7399
A37: 32 | B37: 43.81695 | C37: 36.7443
A38: 33 | B38: 45.32355 | C38: 37.7487
A39: 34 | B39: 46.83015 | C39: 38.7531
A40: 35 | B40: 47.709 | C40: 39.7575
A41: 36 | B41: 47.709 | C41: 40.7619
A42: 37 | B42: 47.709 | C42: 41.7663
A43: 38 | B43: 47.709 | C43: 42.7707
A44: 39 | B44: 47.709 | C44: 43.7751
A45: 40 | B45: 47.709 | C45: 44.7795
A46: 41 | B46: 47.709 | C46: 45.7839
A47: 42 | B47: 47.709 | C47: 46.7883
A48: 43 | B48: 47.709 | C48: 47.709
A49: 44 | B49: 47.709 | C49: 47.709
A50: 45 | B50: 47.709 | C50: 47.709

Sheet H19.3.31（H2７.3.31） (hidden)
F2: 旧２
B3: 勧奨 | C3: 自己都合
A4: 年 数
A5: 0 | C5: 0
A6: 1 | B6: 0.837 | C6: 0.5022
A7: 2 | B7: 1.674 | C7: 1.0044
A8: 3 | B8: 2.511 | C8: 1.5066
A9: 4 | B9: 3.348 | C9: 2.0088
A10: 5 | B10: 4.185 | C10: 2.511
A11: 6 | B11: 5.022 | C11: 3.7665
A12: 7 | B12: 5.859 | C12: 4.39425
A13: 8 | B13: 6.696 | C13: 5.022
A14: 9 | B14: 7.533 | C14: 5.64975
A15: 10 | B15: 8.37 | C15: 6.2775
A16: 11 | B16: 9.2907 | C16: 7.43256
A17: 12 | B17: 10.2114 | C17: 8.16912
A18: 13 | B18: 11.1321 | C18: 8.90568
A19: 14 | B19: 12.0528 | C19: 9.64224
A20: 15 | B20: 12.9735 | C20: 10.3788
A21: 16 | B21: 13.8942 | C21: 11.11536
A22: 17 | B22: 14.8149 | C22: 11.85192
A23: 18 | B23: 15.7356 | C23: 12.58848
A24: 19 | B24: 16.6563 | C24: 13.32504
A25: 20 | B25: 21.97125 | C25: 17.577
A26: 21 | B26: 23.22675 | C26: 18.5814
A27: 22 | B27: 24.48225 | C27: 19.5858
A28: 23 | B28: 25.73775 | C28: 20.5902
A29: 24 | B29: 26.99325 | C29: 21.5946
A30: 25 | B30: 33.8985 | C30: 28.24875
A31: 26 | B31: 35.4051 | C31: 29.50425
A32: 27 | B32: 36.9117 | C32: 30.75975
A33: 28 | B33: 38.4183 | C33: 32.01525
A34: 29 | B34: 39.9249 | C34: 33.27075
A35: 30 | B35: 41.4315 | C35: 34.52625
A36: 31 | B36: 42.687 | C36: 35.5725
A37: 32 | B37: 43.9425 | C37: 36.61875
A38: 33 | B38: 45.198 | C38: 37.665
A39: 34 | B39: 46.4535 | C39: 38.71125
A40: 35 | B40: 47.709 | C40: 39.7575
A41: 36 | B41: 47.709 | C41: 40.80375
A42: 37 | B42: 47.709 | C42: 41.85
A43: 38 | B43: 47.709 | C43: 42.89625
A44: 39 | B44: 47.709 | C44: 43.9425
A45: 40 | B45: 47.709 | C45: 44.98875
A46: 41 | B46: 47.709 | C46: 46.035
A47: 42 | B47: 47.709 | C47: 47.08125
A48: 43 | B48: 47.709 | C48: 47.709
A49: 44 | B49: 47.709 | C49: 47.709
A50: 45 | B50: 47.709 | C50: 47.709

Sheet 育休特殊事例入力方法
B1: 育児休業から復帰後、再度、同一の子の育児休業を取得した場合について
B4: 入力シートの除算期間の子の誕生日欄は、行毎に子の誕生日が異なることを想定していますので、
B5: 期間を空けて同じ子の育児休業を取得した場合は、正しく計算されない事があります。
B6: その場合は、お手数をおかけしますが下記のとおり入力してください。
B8: ①子どもの１歳の誕生日を越えて、１回目の育児休業を取得した場合
B9: ※１歳の誕生日：H23.5.26
C21: ２回目の育児休業の、子の誕生日欄は「２回目の育児休業の開始日の１年前の日」を
C22: 入力してください。 １／２の除算率で計算されます。
B24: ②子どもの１歳の誕生日よりも前に１回目の育児休業が終了した場合
B25: ※１歳の誕生日：H23.5.26
C37: この場合は子の誕生日をそのまま入力してください。
C38: １歳に達した日の属する月までは１／３、 以後は１／２の除算率で計算されます。
B40: 同じ子について再度育児休業を取得した場合は、最初の育児休業の期間が子どもの１歳の誕生日よりも前に終了したかどうかで、子の誕生日欄を入力してください。
